Cogmind - Beta 12 X1 @@@ ROGUE MODE // 2022.08.06 @ 23:22:25 Player: leiavoia Result: Destroyed by P-80 Master with Gamma Rifle Performance ------------- Evolutions (8) 4000 Regions Visited (32) 6400 Robots Destroyed (1072) 5360 Value Destroyed (50228) 50228 Prototype IDs (109) 2180 Alien Tech Used (2) 400 Bonus (46103) 46103 TOTAL SCORE: 114671 Bonus ------- Triggered High Security 2500 High Alert Combat Kills 35043 Follower Combat Kills 2039 Entered Garrisons 400 Aligned with FarCom 300 Met Data Miner 300 Met Imprinter 300 Met Zhirov 300 Met Warlord at Base 500 MAIN.C Attacked Warlord 500 Warlord Defense Kills 5054 Scanned by Researcher 500 Friendly Fire -1633 Cogmind --------- Core Integrity 0/1450 Matter 245/300 Energy 100/100 System Corruption 85% Temperature Cool (20) Movement Core (100) Ox1 Location -2/Research Parts ------- > --- POWER (2) -------- (None) > --- PROPULSION (6) --- (None) > --- UTILITY (11) ----- Advanced Target Analyzer Graphene Brace > --- WEAPON (4) ------- Plasma Lance > --- INVENTORY (5) ---- Armored Heavy Treads Armored Heavy Treads Peak State ------------ > --- POWER ------------ Vortex Chain Reactor > --- PROPULSION ------- Armored Heavy Treads Advanced Heavy Treads Advanced Heavy Siege Treads > --- UTILITY ---------- Advanced Cooling System Cargo Storage Unit Precision Matter Filter Improved Weapon Cycler Experimental Cloaking Device Improved Medium Armor Plating Layered Medium Armor Plating Graphene Brace Advanced Thermal Shield Advanced Force Field > --- WEAPON ----------- Neutron Cannon Nova Cannon Enhanced Nova Cannon Micro-nuke Launcher > --- INVENTORY -------- Particle Reactor Particle Reactor Armored Heavy Treads Advanced Heavy Siege Treads Centrium Wheel Centrium Wheel Cooled Impulse Thruster Cooled Impulse Thruster Advanced Cooling System Huge Storage Unit Advanced Energy Well Matter Compressor Improved Matter Compressor Advanced Terrain Scan Processor Improved Medium Armor Plating Layered Heavy Armor Plating Improved Focal Shield Advanced Hardlight Generator Advanced Force Field Long-range Tractor Beam Transdimensional Reconstructor Heavy Gauss Cannon Linear Accelerator Linear Accelerator Heavy Proton Missile Launcher Gamma Bomb Array Plasma Lance [Rating: 184] Favorites ----------- Power Antimatter Reactor Engine Deuterium Engine Power Core Reinforced Fission Core Reactor Antimatter Reactor Propulsion High-density Centrium Wheel Treads Armored Treads Leg Improved Aluminum Leg Wheel High-density Centrium Wheel Hover Unit Gravmag Array Flight Unit Cesium-ion Thruster Utility Advanced Cooling System Device Advanced Cooling System Storage Humpback Processor Advanced Terrain Scan Processor Hackware Hacking Suite Protection Improved Heavy Armor Plating Weapon Antimatter Cannon Energy Gun EM Pulse Gun Energy Cannon Heavy Phase Cannon Ballistic Gun Assault Rifle Ballistic Cannon Antimatter Cannon Launcher Long-range Missile Launcher Impact Weapon Heavy Mace Slashing Weapon Scythe Piercing Weapon Plasma Lance Build | -11 -10 -10 -10 -9 -8 -8 -8 -7 -7 -7 -7 -7 -6 -6 -6 -6 -6 -6 -6 -5 -5 -5 -5 -5 -4 -4 -4 -4 -4 -3 -3 -2 ------- Run | Scr Mat Min Exi Min Mat Gar Sto Fac Gar Fac Low Dat Pro Fac Was Fac Low Low Zio Pro Fac Upp Upp Zhi Pro Fac Upp Upp War Pro Res Res Slots Evolved 16 | . . . . . 4 . . 2 . . . . . 2 . . . . . . 2 . . . . 2 . . . . 2 2 Power 1 | . . . . . . . . . . . . . . . . . . . . . . . . . . 1 . . . . . . Propulsion 4 | . . . . . 2 . . . . . . . . . . . . . . . . . . . . . . . . . 2 . Utility 9 | . . . . . 2 . . 2 . . . . . 2 . . . . . . 2 . . . . . . . . . . 1 Weapon 2 | . . . . . . . . . . . . . . . . . . . . . . . . . . 1 . . . . . 1 Parts Attached 1288 | 1 9 2 . 1 37 30 5 126 13 8 3 2 14 21 14 206 7 15 22 14 147 22 17 12 12 140 12 20 34 29 226 67 Power 77 | . 1 . . . 1 . . 5 1 . . . . 2 . 11 . 1 3 . 14 . . 3 . 11 . 1 1 . 16 6 Engine 23 | . 1 . . . 1 . . 3 1 . . . . 1 . 3 . . 1 . 9 . . . . 3 . . . . . . Core 24 | . . . . . . . . 2 . . . . . 1 . 5 . 1 1 . 4 . . . . 6 . . . . 4 . Reactor 30 | . . . . . . . . . . . . . . . . 3 . . 1 . 1 . . 3 . 2 . 1 1 . 12 6 Propulsion 177 | . 2 2 . 1 14 7 2 15 . 1 1 . 3 3 2 25 . 1 3 . 20 8 4 . 4 27 1 . 2 9 17 3 Treads 67 | . . . . . 9 5 2 7 . 1 1 . 1 2 . 6 . . 1 . 2 4 2 . 2 7 . . . 3 9 3 Leg 7 | . 2 . . 1 4 . . . . . . . . . . . . . . . . . . . . . . . . . . . Wheel 55 | . . 2 . . 1 2 . 3 . . . . 2 1 2 6 . 1 2 . 4 4 2 . 2 12 1 . 1 6 1 . Hover 18 | . . . . . . . . . . . . . . . . 11 . . . . 7 . . . . . . . . . . . Flight 30 | . . . . . . . . 5 . . . . . . . 2 . . . . 7 . . . . 8 . . 1 . 7 . Utility 723 | 1 4 . . . 12 11 1 83 5 4 2 . 7 14 8 128 3 5 10 11 81 9 13 7 8 75 7 7 22 13 136 36 Device 478 | 1 1 . . . 5 5 . 59 2 1 1 . 2 9 4 90 2 2 4 8 47 7 7 3 7 47 3 5 14 11 109 22 Storage 39 | . 3 . . . 1 1 . 3 . . . . 1 1 . 5 . . . . 5 . 1 1 . 10 . 1 . . 3 3 Processor 30 | . . . . . 1 . . 5 1 . . . . . . 4 . 1 6 . 3 . . . . 3 1 . . 1 2 2 Hackware 22 | . . . . . 2 . . 5 . 2 . . . 1 . 4 . . . . 6 . . . . 1 . . . . 1 . Protection 154 | . . . . . 3 5 1 11 2 1 1 . 4 3 4 25 1 2 . 3 20 2 5 3 1 14 3 1 8 1 21 9 Artifact . | . . . . . . . . . . . . . . . . . . . . . . . . . . . . . . . . . Weapon 311 | . 2 . . . 10 12 2 23 7 3 . 2 4 2 4 42 4 8 6 3 32 5 . 2 . 27 4 12 9 7 57 22 Energy Gun . | . . . . . . . . . . . . . . . . . . . . . . . . . . . . . . . . . Energy Cannon 107 | . 1 . . . 3 3 . 11 1 1 . 1 . . 3 21 1 2 . . 17 . . . . 11 2 4 2 2 14 7 Ballistic Gun 11 | . 1 . . . 4 . . . . . . . . . . . . . . . 2 . . . . 1 . 1 . . 1 1 Ballistic Cannon 101 | . . . . . 3 5 2 1 4 2 . 1 2 1 1 13 2 2 4 1 12 3 . 1 . 5 . 5 4 2 17 8 Launcher 74 | . . . . . . 4 . 7 2 . . . 2 1 . 5 1 4 2 2 1 2 . . . 6 2 1 3 2 22 5 Special Weapon . | . . . . . . . . . . . . . . . . . . . . . . . . . . . . . . . . . Impact Weapon 6 | . . . . . . . . 2 . . . . . . . 3 . . . . . . . . . . . 1 . . . . Slashing Weapon 6 | . . . . . . . . 2 . . . . . . . . . . . . . . . 1 . 2 . . . . 1 . Piercing Weapon 6 | . . . . . . . . . . . . . . . . . . . . . . . . . . 2 . . . 1 2 1 Special Melee Weapon . | . . . . . . . . . . . . . . . . . . . . . . . . . . . . . . . . . Unidentified Prototypes 50 | . . . . . 1 . 1 3 . . . . . 1 1 4 . . 7 . 2 . . 4 . 3 . 1 6 . 10 6 Corrupted Parts 4 | . . . . . . . . . . . . . . . . . . . . . . . . . . . . . . . . 4 System Corruption 24 | . . . . . . . . . . . . . . . . . . . . . . . . . . . . . . . . 24 Parts Lost 108 | . . . . 1 1 1 . . . 1 1 . 1 5 . 9 . 4 . . 8 . 1 . . 12 . 2 1 2 9 49 Power 17 | . . . . . . . . . . . . . . 1 . 1 . 1 . . 3 . . . . 3 . 1 . . 1 6 Propulsion 15 | . . . . 1 . 1 . . . 1 . . 1 1 . . . . . . 2 . . . . 2 . . . . . 6 Utility 53 | . . . . . . . . . . . 1 . . 3 . 5 . 2 . . 1 . 1 . . 6 . 1 . 2 6 25 Weapon 23 | . . . . . 1 . . . . . . . . . . 3 . 1 . . 2 . . . . 1 . . 1 . 2 12 Highest Loss Streak 19 | . . . . 1 1 1 . . . 1 1 . 1 3 . 2 . 4 . . 2 . 1 . . 4 . 2 1 2 2 19 To Critical Strikes 1 | . . . . . . . . . . . . . . . . . . . . . . . . . . . . . 1 . . . Average Slot Usage (%) 81 | . 100 100 100 100 95 89 89 86 76 83 83 70 83 77 80 83 86 82 79 80 84 83 81 78 82 70 83 86 84 73 72 67 Engine 3 | . 14 14 14 14 9 9 9 4 7 7 7 7 7 2 6 2 . . . . 1 5 5 2 . 2 . . . . . . Core 1 | . . . . . . . . 2 . . . . . 3 . 1 . 2 5 . 2 . . . . 2 5 5 2 . . . Reactor 2 | . . . . . . . . . . . . . . . . 2 6 3 . 6 1 . . 2 5 3 5 4 5 5 4 6 Treads 7 | . . . . . 34 33 18 15 . 1 7 7 8 . 6 9 . . . . . . . . . 1 . . . . 8 9 Wheel 9 | . . 16 28 15 . 2 18 2 23 20 15 15 14 12 13 4 26 22 19 20 4 16 16 17 16 8 21 21 21 19 3 . Hover 1 | . . . . . . . . . . . . . . . . 6 . . . . 6 . . . . . . . . . . . Flight 2 | . . . . . . . . 8 . . . . . . . . . . . . 5 . . . . 3 . . . . 4 . Device 15 | . 14 14 14 14 9 9 9 9 15 17 14 15 8 11 11 13 17 20 18 13 9 23 23 20 23 15 21 21 20 20 20 22 Storage 6 | . 14 14 14 14 9 10 9 6 7 7 7 7 7 6 6 5 6 6 6 6 4 5 5 6 5 6 7 4 5 5 4 5 Processor 5 | . . . . . 4 . . 5 . 7 6 . . . . 7 6 3 2 9 15 11 11 11 11 6 2 5 5 4 2 2 Hackware 4 | . . . . . 3 . . 10 . 2 . . . 4 6 9 . . . . 16 . . . . 2 . . . . 1 . Protection 7 | . . . . . 7 14 8 5 6 1 8 15 21 19 14 6 8 8 11 9 4 11 10 11 11 5 9 10 9 7 6 5 Energy Cannon 3 | . 10 14 14 14 4 2 9 3 7 7 7 1 7 6 6 3 6 3 . . 3 . . . . 1 3 4 3 2 1 7 Ballistic Cannon 4 | . . . . . 2 6 8 . 5 7 7 . 5 5 6 2 5 8 12 8 2 4 5 . 5 2 5 7 9 6 4 4 Launcher 1 | . . . . . . . . 4 1 . . . 1 . . 2 . . . 3 . . . . . . . . . . 2 2 Naked Turns . | . . . . . . . . . . . . . . . . . . . . . . . . . . . . . . . . . Heaviest Build 330 | 13 91 91 91 91 121 309 309 330 255 252 259 259 278 292 292 281 264 263 261 273 260 263 256 251 254 324 301 295 275 287 284 273 Greatest Support 600 | 20 26 26 20 10 82 82 24 80 56 56 40 40 48 56 44 115 72 72 68 68 68 129 68 68 68 160 72 72 72 72 210 600 Greatest Overweight (x) 17 | . 3 4 4 9 1 12 12 10 4 6 6 6 9 10 10 17 3 3 5 4 6 6 3 3 3 13 4 4 4 6 4 1 Average Overweight (x) 1 | . . 3 4 9 1 2 9 . 4 4 6 5 6 5 6 . 3 3 3 3 . 3 3 3 3 . 3 3 2 3 . . Largest Inventory Capacity 35 | 8 25 25 25 25 25 35 35 35 35 35 35 35 35 35 35 35 35 35 35 35 35 35 35 35 35 35 35 35 30 30 30 30 Average Capacity 27 | 8 14 25 25 25 25 26 35 20 35 35 35 35 35 35 35 23 35 35 35 35 18 35 35 35 35 24 35 30 30 30 24 30 Most Carried 35 | 6 25 25 25 25 25 35 35 35 35 35 35 34 35 35 35 35 35 35 35 35 35 35 35 35 35 35 35 35 30 30 30 30 Average Carried 26 | 6 13 24 24 23 24 25 34 19 34 34 34 34 33 33 34 22 34 33 32 34 15 33 34 34 34 22 34 30 29 29 24 26 Final Capacity 35 | 8 25 25 25 25 25 35 35 35 35 35 35 35 35 35 35 35 35 35 35 35 35 35 35 35 35 35 35 30 30 30 30 5 Final Carried 35 | 6 25 25 25 23 25 35 35 35 35 35 34 34 35 29 35 34 35 31 35 35 33 35 35 35 35 35 35 30 30 30 30 4 Class Distribution -------------------- 45% | Hauler-Mutant 19% | Mutant 7% | Hauler-Tank 6% | Hacker-Mutant 4% | Hauler-Skirmisher 4% | Hacker-Scout Dominant Class ---------------- Mutant | -10/Materials Mutant | -10/Mines Mutant | -10/Exiles Mutant | -9/Mines Mutant | -8/Materials Mutant | -8/Garrison Hauler-Mutant | -8/Storage Mutant | -7/Factory Hauler-Mutant | -7/Garrison Hauler-Mutant | -7/Factory Hauler-Mutant | -7/Lower Caves Hauler-Mutant | -7/Data Miner Hauler-Mutant | -6/Proximity Caves Hauler-Mutant | -6/Factory Hauler-Mutant | -6/Waste Hacker-Mutant | -6/Factory Hauler-Mutant | -6/Lower Caves Hauler-Mutant | -6/Lower Caves Hauler-Mutant | -6/Zion Hauler-Mutant | -5/Proximity Caves Hacker-Mutant | -5/Factory Hauler-Skirmisher | -5/Upper Caves Hauler-Mutant | -5/Upper Caves Hauler-Mutant | -5/Zhirov Hauler-Mutant | -4/Proximity Caves Hauler-Mutant | -4/Factory Hauler-Mutant | -4/Upper Caves Hauler-Tank | -4/Upper Caves Hauler-Mutant | -4/Warlord Hauler-Mutant | -3/Proximity Caves Hauler-Mutant | -3/Research Hauler-Tank | -2/Research Resources | -11 -10 -10 -10 -9 -8 -8 -8 -7 -7 -7 -7 -7 -6 -6 -6 -6 -6 -6 -6 -5 -5 -5 -5 -5 -4 -4 -4 -4 -4 -3 -3 -2 ----------- Run | Scr Mat Min Exi Min Mat Gar Sto Fac Gar Fac Low Dat Pro Fac Was Fac Low Low Zio Pro Fac Upp Upp Zhi Pro Fac Upp Upp War Pro Res Res Matter Collected 41177 | 240 225 36 . 35 875 1110 347 3462 447 93 173 . 438 291 392 6900 598 377 294 915 2967 1111 365 80 410 4347 750 459 1459 1224 8334 2423 Remotely 13552 | . . . . . . 217 . 1491 . . . . 212 59 . 2486 . . . 610 289 387 . . 216 1570 . 79 813 . 4053 1070 Salvage Created 43617 | 162 667 54 . 163 1129 810 453 5667 1400 137 129 . 378 427 384 6723 401 239 . 589 1221 644 383 174 501 4123 506 493 1002 496 9229 4933 Parts 1859 | 6 41 1 . 10 65 44 32 305 46 4 4 . 24 21 1 291 8 10 . 17 55 18 13 1 18 170 15 10 21 10 364 234 Haulers Intercepted 13 | . 2 . . . 3 . . 1 . . . . . . . 2 . . . . 1 . . . . 2 . . . . 2 . Recyclers Shooed 23 | . 1 . . . 1 . . 4 . . . . . 1 . 10 . . . . . . . . . . . . . . 6 . Parts Field Recycled . | . . . . . . . . . . . . . . . . . . . . . . . . . . . . . . . . . Retrieved Matter . | . . . . . . . . . . . . . . . . . . . . . . . . . . . . . . . . . Parts Self-Destructed 172 | . . . . . . . . . . . 4 . 35 . . . 9 8 . 15 . 18 24 . 29 . 12 9 . 9 . . Prevented 1 | . . . . . . . . . . . . . . . . . 1 . . . . . . . . . . . . . . . Kills | -11 -10 -10 -10 -9 -8 -8 -8 -7 -7 -7 -7 -7 -6 -6 -6 -6 -6 -6 -6 -5 -5 -5 -5 -5 -4 -4 -4 -4 -4 -3 -3 -2 ------- Run | Scr Mat Min Exi Min Mat Gar Sto Fac Gar Fac Low Dat Pro Fac Was Fac Low Low Zio Pro Fac Upp Upp Zhi Pro Fac Upp Upp War Pro Res Res Combat Hostiles Destroyed 951 | . 10 . . 4 18 26 11 125 21 1 3 . 16 8 . 167 7 11 . 23 25 18 10 . 13 122 10 9 36 21 157 79 Melee 9 | . . . . . . . . 2 . . . . . . . 1 . . . . . . . . . . . . 1 . 3 2 Guns 18 | . 7 . . 1 9 . . . . . . . . . . . . . . . 1 . . . . . . . . . . . Cannons 370 | . 2 . . 3 6 17 10 20 11 1 3 . 2 8 . 43 5 6 . 10 19 14 10 . 13 59 8 5 16 13 39 27 AOE 508 | . 1 . . . 2 9 . 102 8 . . . 14 . . 122 2 5 . 13 4 4 . . . 63 2 4 19 8 79 47 Classes Destroyed 28 | 2 4 . . 1 3 4 1 4 . . . . . . . 3 . 1 . . . 1 . . . . . . 3 . 1 . Worker 54 | . . . . 1 2 . 1 22 . . . . . 2 . 9 . . . . 2 . . . . 7 . . . . 8 . Builder 54 | . . . . . . . 3 23 . . . . . 1 . 16 . . . . 1 . . . . 4 . . . . 6 . Tunneler 14 | 4 . . . 1 . . . 4 . . . . . . . 2 . . . . 1 . . . . 1 . . . . 1 . Hauler 13 | . 2 . . . 3 . . 1 . . . . . . . 2 . . . . 1 . . . . 2 . . . . 2 . Recycler 48 | 1 3 . . 1 2 . . 13 . 1 . . . 1 . 11 . . . . 3 . . . . 2 . . . . 10 . Carrier 1 | . . . . . . . . . . . . . . . . 1 . . . . . . . . . . . . . . . . Mechanic 34 | . . . . . . . . 5 . . . . . . . 11 . . . . 1 . . . . 8 . . . . 1 8 Operator 7 | . 1 . . . 1 . . 1 . . . . . . . 2 . . . . . . . . . 1 . . . . 1 . Drone 1 | . . . . . . . . 1 . . . . . . . . . . . . . . . . . . . . . . . . Watcher 21 | . . . . . 1 1 2 6 . . . . . . . 3 . . . . 2 . . . . 4 . . . . 1 1 Swarmer 128 | . 6 . . 4 6 12 3 2 11 . . . 11 2 . 9 3 3 . 7 2 10 3 . 5 11 . 2 3 6 2 5 Cutter 3 | . . . . . . 3 . . . . . . . . . . . . . . . . . . . . . . . . . . Saboteur 33 | . . . . . . . . . . . . . . . . 9 . . . . . . . . 1 4 . . 3 . 12 4 Grunt 333 | . 4 . . . 4 3 4 72 7 . 2 . 1 1 . 74 2 3 . 9 5 5 1 . 3 36 2 4 13 11 50 17 Brawler 46 | . . . . . . 1 . 10 . . 1 . 1 . . 12 . . . . . . . . . 6 2 . 1 . 7 5 Duelist 54 | . . . . . . 1 . 6 . . . . . . . 14 . . . 3 . . 2 . 2 9 . . 2 . 11 4 Protector 42 | . . . . . . . . 12 . . . . . . . 7 . . . 1 1 . . . . 8 . . 2 . 9 2 Sentry 41 | . . . . . 7 4 3 . 3 1 . . 1 1 . 2 1 . . 2 3 1 1 . 1 2 2 1 . 2 2 1 Demolisher 2 | . . . . . . . . . . . . . . . . . . . . . . . . . . . . . 1 . . 1 Specialist 3 | . . . . . . . . . . . . . . . . . . 3 . . . . . . . . . . . . . . Hunter 94 | . . . . . 1 . 1 11 . . . . 1 1 . 14 . 1 . . 3 . 2 . . 13 4 2 5 2 25 8 Programmer 140 | . . . . . . . . 11 . . . . . 3 . 25 1 1 . . 10 . . . 1 33 . . 1 . 33 21 Heavy 2 | . . . . . . . . . . . . . . . . 1 . . . . 1 . . . . . . . . . . . Behemoth 5 | . . . . . . 2 . . . . . . 1 . . . . . . 1 . 1 . . . . . . . . . . Investigator 2 | . . . . . . . . . . . . . . . . . . . . . . . . . . . . . . . 2 . Striker 10 | . . . . . . . . . . . . . . . . . . . . . . . . . . . . . 2 . 5 3 Executioner 13 | . . . . . . . . . . . . . . . . . . . . . . . . . . . . . 4 . 1 8 Wasp 1 | . . . . . . . . . . . . . . . . . . . . . . . . . . . . . . . . 1 Thug 1 | . . 1 . . . . . . . . . . . . . . . . . . . . . . . . . . . . . . Savage 1 | . . . . . . . . . . . . . . . . 1 . . . . . . . . . . . . . . . . Mutant 2 | . . . . . . . . . . . . . . . . . . . . . . 1 1 . . . . . . . . . Best Kill Streak 33 | 3 5 . . 5 6 9 5 26 3 1 3 . 9 5 . 33 3 3 . 7 11 6 7 . 8 25 5 5 13 7 22 28 Combat Bots Only 30 | . 3 . . 4 3 9 2 23 3 1 3 . 9 2 . 30 3 3 . 7 7 6 7 . 8 22 5 5 13 7 21 22 Max Kills in Single Turn 12 | 2 2 1 . 1 3 3 2 8 3 1 1 . 4 2 . 7 2 1 . 3 3 4 1 . 1 12 1 2 3 3 4 6 Gunslinging 1 | . 1 . . . . . . . . . . . . . . . . . . . . . . . . . . . . . . . Exploded 8 | . 1 . . . 1 3 . 8 3 . . . 4 . . 6 2 1 . 3 2 4 . . . 4 1 2 3 3 4 5 Melee 1 | . . . . . . . . 1 . . . . . . . 1 . . . . . . . . . . . . 1 . 1 1 Uniques/NPCs Destroyed . | . . . . . . . . . . . . . . . . . . . . . . . . . . . . . . . . . Combat | -11 -10 -10 -10 -9 -8 -8 -8 -7 -7 -7 -7 -7 -6 -6 -6 -6 -6 -6 -6 -5 -5 -5 -5 -5 -4 -4 -4 -4 -4 -3 -3 -2 -------- Run | Scr Mat Min Exi Min Mat Gar Sto Fac Gar Fac Low Dat Pro Fac Was Fac Low Low Zio Pro Fac Upp Upp Zhi Pro Fac Upp Upp War Pro Res Res Damage Taken 50082 | 28 346 . . 147 618 851 579 1568 578 145 182 . 378 1561 . 4557 380 1057 . 909 2938 282 283 . 47 4450 388 595 953 1232 7855 17175 Core 3997 | 28 49 . . 28 99 85 34 137 16 8 . . 47 184 . 409 19 43 . 63 421 38 . . . 375 26 73 16 85 340 1374 Absorbed by Shields 19356 | . . . . . 183 76 . 436 176 . . . . 72 . 15 82 126 . 122 217 81 84 . 12 1546 216 232 817 804 3628 10431 Reduced by Siege Mode 5063 | . . . . . . . . . . . . . . . . 67 . . . . . 6 3 . 5 192 . . . 11 629 4150 Redirected to Shielding 119 | . . . . . . . . . . . . . . . . 55 . . . . . . . . . . . . . . 16 48 Regen/Repaired (Parts) 2168 | . . . . . 93 . 57 . . . . . . . . 651 . . 1114 . 36 . . . . . . . 217 . . . Core Remaining (%) 58 | 88 . . . 58 . . 60 . . . . . 70 . . . . . . 15 . . . . 54 . . . . 50 73 . Volleys Fired 2748 | 10 51 14 . 10 79 106 44 319 132 11 8 . 22 85 23 389 26 42 . 38 277 45 25 . 30 237 25 27 65 51 408 149 Largest 4 | 2 2 1 . 2 2 2 2 2 2 2 2 . 2 2 1 2 2 2 . 2 2 1 1 . 1 2 2 2 3 2 3 4 Hottest 373 | 60 80 60 . 80 107 124 143 138 143 147 147 . 147 147 90 156 130 130 . 80 155 90 60 . 60 120 150 150 179 190 203 373 Shots Fired 3466 | 20 102 14 . 20 135 107 77 363 147 15 16 . 30 113 24 424 36 58 . 58 324 45 25 . 30 269 40 42 86 61 510 275 Gun 210 | 20 71 . . 10 94 . . . . . . . . . . . . . . . 10 . . . . . . . . . . 5 Cannon 2670 | . 31 14 . 10 41 98 77 263 142 15 16 . 22 113 24 294 35 52 . 48 303 44 25 . 30 220 35 39 69 53 346 211 Launcher 586 | . . . . . . 9 . 100 5 . . . 8 . . 130 1 6 . 10 11 1 . . . 49 5 3 17 8 164 59 Special . | . . . . . . . . . . . . . . . . . . . . . . . . . . . . . . . . . Kinetic 1416 | 10 51 . . 10 99 66 33 13 14 4 8 . 7 37 1 111 14 30 . 48 126 43 25 . 30 155 27 15 66 30 234 109 Thermal 1372 | . 31 14 . 10 . 32 44 250 128 11 8 . 15 76 23 183 21 22 . . 187 1 . . . 65 8 24 3 . 109 107 Explosive 443 | . . . . . . 9 . 100 5 . . . 8 . . 130 1 6 . 10 11 1 . . . 49 5 3 17 8 56 24 Electromagnetic 212 | 10 20 . . . 36 . . . . . . . . . . . . . . . . . . . . . . . . . 111 35 Entropic 23 | . . . . . . . . . . . . . . . . . . . . . . . . . . . . . . 23 . . Robot Hit Streak 107 | 5 7 4 . 7 13 29 15 34 48 6 8 . 9 7 13 62 13 18 . 7 23 27 42 . 35 107 10 15 12 10 37 19 Robot Miss Streak 8 | 2 6 8 . 3 4 2 6 4 2 1 1 . 4 3 1 6 1 3 . 3 4 2 2 . 2 6 3 3 3 3 6 5 Penetration Max 2 | . . . . . . . . . . 1 . . . . . . . . . . . . . . . . . . . . 1 2 Secondary Targets 1 | . 1 . . . . . . . . . . . . . . . . . . . . . . . . . . . . . . . Max Gunslinging Chain 1 | . 1 . . . . . . . . . . . . . . . . . . . . . . . . . . . . . . . Shots Hit Robots 2217 | 13 52 8 . 11 96 65 44 229 89 6 11 . 14 48 22 318 29 29 . 38 131 36 23 6 28 214 27 30 51 36 319 194 Core Hits 2314 | 7 17 3 . 7 39 37 15 313 49 2 4 . 22 16 2 380 12 19 . 42 62 35 23 2 29 329 23 27 81 32 426 259 Critical Kills 16 | . 1 . . . . . 1 5 3 . . . . . . 1 . . . . 2 . . . . . . . . . 1 2 Critical Parts Destroyed 13 | . . . . . . . . 1 . . . . . . . 3 . . . . . . . . . . . . . . . 9 Critical Strikes 117 | . 1 . . . . 7 3 7 3 1 . . . 1 . 11 . 2 . 1 6 1 2 . 1 8 1 1 8 7 23 22 Meltdown 14 | . 1 . . . . . 1 5 3 . . . . . . 1 . . . . 2 . . . . . . . . . 1 . Destroy 11 | . . . . . . . . . . . . . . . . . . . . . . . . . . . . . . . . 11 Blast 75 | . . . . . . 7 2 . . 1 . . . 1 . 7 . 2 . 1 4 1 2 . 1 7 1 1 8 1 17 11 Smash 4 | . . . . . . . . 1 . . . . . . . 3 . . . . . . . . . . . . . . . . Sever 2 | . . . . . . . . 1 . . . . . . . . . . . . . . . . . 1 . . . . . . Impale 5 | . . . . . . . . . . . . . . . . . . . . . . . . . . . . . . . 5 . Sunder 6 | . . . . . . . . . . . . . . . . . . . . . . . . . . . . . . 6 . . Melee Attacks 444 | . . . . . . . . 124 . . . . . . . 106 . . . . . . . 6 . 85 . . . 1 111 11 Impact 109 | . . . . . . . . 3 . . . . . . . 106 . . . . . . . . . . . . . . . . Slashing 144 | . . . . . . . . 121 . . . . . . . . . . . . . . . 6 . 15 . . . . 2 . Piercing 191 | . . . . . . . . . . . . . . . . . . . . . . . . . . 70 . . . 1 109 11 Sneak Attacks 44 | . . . . . . . . 9 . . . . . . . 13 . . . . . . . . . 6 . . . . 16 . Combat Hostiles 1 | . . . . . . . . 1 . . . . . . . . . . . . . . . . . . . . . . . . Follow-up Attacks 1 | . . . . . . . . . . . . . . . . . . . . . . . . . . . . . . . 1 . Damage Inflicted 187747 | 318 855 122 . 197 1975 3475 1582 21867 3585 190 370 . 1849 1670 754 32508 1211 1539 . 2645 6214 2762 1400 412 1786 29270 1502 2021 8448 4258 34570 18392 Guns 2145 | 167 456 . . 68 982 . . . . . . . . . . . . . . . 236 . . . . . . . . . . 236 Cannons 68664 | . 304 122 . 129 749 2804 1505 4807 2896 190 370 . 489 1670 754 7142 1021 900 . 1227 4391 2526 1400 . 1786 9076 1057 1258 2926 2382 8514 6269 Explosions 110378 | 151 89 . . . 197 671 70 15897 689 . . . 1360 . . 23926 190 639 . 1418 1587 236 . . . 18944 445 763 5522 1876 24123 11585 Melee 6483 | . . . . . . . . 1146 . . . . . . . 1440 . . . . . . . 412 . 1250 . . . . 1933 302 Ramming 77 | . 6 . . . 47 . 7 17 . . . . . . . . . . . . . . . . . . . . . . . . Kinetic 45157 | 79 333 . . 68 1050 2044 732 298 145 83 165 . 189 782 37 3277 354 789 . 1227 3170 2526 1400 . 1786 8092 979 695 2926 1287 7286 3358 Thermal 31482 | 151 393 122 . 129 197 760 773 4807 2751 107 205 . 300 888 717 3865 667 111 . . 1591 . . . . 2715 78 563 . . 2932 6660 Explosive 90464 | . . . . . . 671 70 15599 689 . . . 1360 . . 23926 190 639 . 1418 1453 236 . . . 17213 445 763 5522 1876 14333 4061 Electromagnetic 12989 | 88 123 . . . 681 . . . . . . . . . . . . . . . . . . . . . . . . . 8086 4011 Impact 1477 | . . . . . . . . 37 . . . . . . . 1440 . . . . . . . . . . . . . . . . Slashing 2122 | . . . . . . . . 1109 . . . . . . . . . . . . . . . 412 . 539 . . . . 62 . Piercing 2884 | . . . . . . . . . . . . . . . . . . . . . . . . . . 711 . . . . 1871 302 Entropic 1095 | . . . . . . . . . . . . . . . . . . . . . . . . . . . . . . 1095 . . Highest Corruption 85 | . . . . . 2 2 3 2 3 3 4 4 4 10 10 20 16 23 23 . 5 . . . . 6 6 15 15 7 60 85 Average Corruption 12 | . . . . . 2 2 2 1 2 3 3 4 4 9 10 13 16 18 23 . 3 . . . . 2 6 13 6 5 33 41 Corruption Purged 30 | . . . . . . . . 4 . . . . . . . 11 . . . . 9 . . . . 6 . . . . . . Corruption Blocked 104 | . . . . . . . . . . . . . . . . . . . . . . . . . . . . . . . . 104 Effects 1256 | . . . . . 24 16 14 38 31 5 5 5 19 5 28 336 27 55 6 . 46 . . . . 30 50 52 3 43 343 75 Message Errors 299 | . . . . . 4 4 4 6 6 1 2 1 7 1 8 92 6 18 2 . 9 . . . . 11 12 11 1 11 72 10 Matter Fused 291 | . . . . . 2 5 3 7 8 . 1 3 3 3 5 80 11 15 1 . 18 . . . . 6 12 8 . 10 71 19 Heat Flow Errors 137 | . . . . . 2 1 1 5 3 1 . . 1 1 5 37 3 8 . . 5 . . . . 1 8 9 . 5 33 8 Energy Discharges 138 | . . . . . 6 . 2 4 6 1 . . 1 . 4 37 3 6 1 . 4 . . . . 3 6 6 1 6 38 3 Parts Rejected 15 | . . . . . . . 1 . 1 . . . . . . 5 . . . . 1 . . . . 1 1 . . . 5 . Data Loss (minor) 151 | . . . . . 4 4 1 4 1 . 2 1 4 . 3 37 . 6 2 . 6 . . . . 2 5 11 . 7 41 10 Data Loss (major) 59 | . . . . . 3 2 1 3 3 1 . . 1 . 2 19 . . . . 1 . . . . 2 . 2 1 . 15 3 Misfires 52 | . . . . . 1 . . 4 2 . . . 1 . 1 12 1 1 . . 1 . . . . 2 5 2 . . 15 4 Alerts 33 | . . . . . 1 . 1 4 . 1 . . 1 . . 7 . . . . . . . . . 2 1 3 . 2 8 2 Misdirections 8 | . . . . . . . . . . . . . . . . 5 . . . . . . . . . . . . . . 3 . Weapon Failures 73 | . . . . . 1 . . 1 1 . . . . . . 5 3 1 . . 1 . . . . . . . . 2 42 16 Overload Shots 6 | . . . . . . . . . . . . . . . . . . . . . . . . . . 5 . . . . 1 . Effects 1 | . . . . . . . . . . . . . . . . . . . . . . . . . . 1 . . . . . . Short Circuit 1 | . . . . . . . . . . . . . . . . . . . . . . . . . . 1 . . . . . . Overflow Damage 9313 | . 6 . . . 3 197 46 886 45 . . . 71 132 43 2362 97 53 . 19 228 86 15 93 9 1513 . 59 446 382 1778 744 Projectiles 3388 | . . . . . 3 182 35 243 22 . . . 13 132 43 468 97 53 . . 166 40 15 . 9 213 . 23 226 271 764 370 Explosions 4122 | . 6 . . . . 15 11 410 23 . . . 58 . . 1074 . . . 19 62 46 . . . 1207 . 36 220 111 450 374 Melee 1803 | . . . . . . . . 233 . . . . . . . 820 . . . . . . . 93 . 93 . . . . 564 . Knockbacks 243 | . . . . . . 6 3 2 3 . 1 . 1 5 . 19 1 2 . 11 16 1 3 . 10 55 3 7 14 9 46 25 Impact 5 | . . . . . . . . . . . . . . . . 5 . . . . . . . . . . . . . . . . Kinetic 230 | . . . . . . 5 3 2 3 . 1 . 1 5 . 14 1 2 . 9 15 1 3 . 9 55 3 7 13 8 45 25 Secondary 8 | . . . . . . 1 . . . . . . . . . . . . . 2 1 . . . 1 . . . 1 1 1 . Self-Inflicted Damage 1306 | 28 62 . . . 16 83 72 183 67 . . . . . . 8 19 . . . . . . . . 158 59 64 20 46 73 348 Shots 43 | 1 2 . . . 1 2 1 4 1 . . . . . . 1 1 . . . . . . . . 4 2 3 1 1 4 14 Rammed 6 | . . . . . 4 . 1 1 . . . . . . . . . . . . . . . . . . . . . . . . Targets Rammed 7 | . 1 . . . 4 . 1 1 . . . . . . . . . . . . . . . . . . . . . . . . Kicked 1 | . 1 . . . . . . . . . . . . . . . . . . . . . . . . . . . . . . . Crushed . | . . . . . . . . . . . . . . . . . . . . . . . . . . . . . . . . . Highest Temperature 529 | 20 108 180 . 108 337 210 110 476 174 112 111 . 246 462 266 421 172 239 209 . 314 37 14 . 24 240 246 280 184 370 529 425 Average Temperature 75 | 16 35 76 . 49 62 59 14 83 17 58 61 . 38 129 99 103 95 106 117 . 63 10 7 . 16 34 49 75 51 112 87 102 Received Heat Transfer 4898 | . 45 . . . 165 189 171 286 120 18 63 . 45 144 . 722 83 96 . 222 255 24 18 . . 571 21 45 20 222 435 918 Effects 29 | . . . . . 1 . . 2 . . . . . 4 . 3 . . . . . . . . . . . . . 4 10 5 Shutdowns 6 | . . . . . . . . 1 . . . . . 2 . . . . . . . . . . . . . . . . 3 . Energy Bleed 8 | . . . . . 1 . . 1 . . . . . 1 . 2 . . . . . . . . . . . . . 1 1 1 Interference 10 | . . . . . . . . . . . . . . . . . . . . . . . . . . . . . . 3 3 4 Matter Decay 2 | . . . . . . . . . . . . . . 1 . . . . . . . . . . . . . . . . 1 . Short Circuit 1 | . . . . . . . . . . . . . . . . . . . . . . . . . . . . . . . 1 . Damage (minor) 2 | . . . . . . . . . . . . . . . . 1 . . . . . . . . . . . . . . 1 . Siege Activations 52 | . . . . . . . . . . . . . . . . 17 . . . . 1 3 1 . 2 2 . . . 3 13 10 Total Turns 5096 | . . . . . . . . . . . . . . . . 2086 . . . . 15 69 19 . 43 501 . . . 44 1960 359 Longest Duration 966 | . . . . . . . . . . . . . . . . 417 . . . . 15 33 19 . 37 472 . . . 30 966 109 Robots Corrupted 39 | . . . . . 1 . . . . . . . . . . . . . . . . . . . . . . . . . 35 3 Combat Hostiles 39 | . . . . . 1 . . . . . . . . . . . . . . . . . . . . . . . . . 35 3 Parts Fried 99 | . 1 . . . 2 1 . 2 . . . . . . . 10 . . . . . . . . . . . . 1 . 74 8 Impact Corruptions 30 | . . . . . . 1 . 1 . . . . . . . 27 . . . . . . . . . . . . . . 1 . Robots Melted 17 | . 1 . . . . 1 1 5 3 . . . . . . 3 . . . . 2 . . . . . . . . . 1 . Combat Hostiles 7 | . . . . . . . 1 1 2 . . . . . . 1 . . . . 1 . . . . . . . . . 1 . Parts Melted 67 | 1 3 . . . . 1 4 15 15 . . . . 1 . 13 . . . . 6 . . . . 2 . . . . 6 . Heat Transferred 32099 | 250 779 259 . 259 250 1200 1150 6900 4300 111 222 . 333 925 777 4033 703 111 . . 1798 . . . . 2040 . . . . 2541 3158 Parts Sabotaged 10 | . . . . . . . . . . . . . . . . . . . . . . . . . . . . . . . . 10 Parts Stolen . | . . . . . . . . . . . . . . . . . . . . . . . . . . . . . . . . . Parts Stripped . | . . . . . . . . . . . . . . . . . . . . . . . . . . . . . . . . . Power Chain Reactions 43 | 2 2 . . . 2 . . . . . . . . . . . . . . . . . . . . . . . . . 19 18 Missiles Intercepted . | . . . . . . . . . . . . . . . . . . . . . . . . . . . . . . . . . Alert | -11 -10 -10 -10 -9 -8 -8 -8 -7 -7 -7 -7 -7 -6 -6 -6 -6 -6 -6 -6 -5 -5 -5 -5 -5 -4 -4 -4 -4 -4 -3 -3 -2 ------- Run | Scr Mat Min Exi Min Mat Gar Sto Fac Gar Fac Low Dat Pro Fac Was Fac Low Low Zio Pro Fac Upp Upp Zhi Pro Fac Upp Upp War Pro Res Res Peak Influence 4791 | 25 317 . . 95 373 911 733 3630 4068 2194 . . . 382 76 4736 . . . . 674 . . . . 4118 . . . . 3978 4791 Initial 2541 | . 16 . . . 37 67 443 313 2541 2135 . . . 199 74 . . . . . . . . . . 147 . . . . . 2237 Average 1274 | 11 149 . . 87 184 582 583 1177 3387 2121 . . . 252 37 1586 . . . . 282 . . . . 1575 . . . . 1359 3723 Maximum Alert Level 5 | . 1 . . . 1 3 3 5 5 5 . . . 1 . 5 . . . . 2 . . . . 5 . . . . 5 5 Low Security (%) 21 | 100 67 100 . 100 51 12 . 3 . . . . . 31 100 21 . . . . 41 . . . . . . . . . 25 . Level 1 18 | . 32 . . . 48 2 . 34 . . . . . 68 . 9 . . . . 26 . . . . 12 . . . . 11 . Level 2 15 | . . . . . . 48 89 16 . . . . . . . 3 . . . . 31 . . . . 35 . . . . 11 . Level 3 8 | . . . . . . 36 10 7 . . . . . . . 16 . . . . . . . . . 3 . . . . 12 . Level 4 6 | . . . . . . . . 11 . . . . . . . 9 . . . . . . . . . 12 . . . . 8 . Level 5 10 | . . . . . . . . 7 100 100 . . . . . 15 . . . . . . . . . 3 . . . . . 2 High Security 19 | . . . . . . . . 19 . . . . . . . 22 . . . . . . . . . 31 . . . . 28 97 Max Security . | . . . . . . . . . . . . . . . . . . . . . . . . . . . . . . . . . Sterilizations 4 | . . . . . . . . 1 . . . . . . . 1 . . . . . . . . . 1 . . . . 1 . Squads Dispatched 239 | . 2 . . . 1 . 3 47 . 2 . . 1 3 . 67 . . . 1 15 . . . 1 42 . 1 . . 52 1 Investigation 42 | . . . . . . . 1 11 . . . . . 1 . 8 . . . . 2 . . . . 9 . 1 . . 8 1 Extermination 39 | . . . . . . . . 5 . . . . . 2 . 15 . . . . 6 . . . . 3 . . . . 8 . Reinforcement 47 | . 2 . . . 1 . 1 10 . . . . . . . 11 . . . . 6 . . . . 5 . . . . 11 . Assault 110 | . . . . . . . 1 20 . 2 . . 1 . . 33 . . . 1 1 . . . 1 25 . . . . 25 . Garrison 1 | . . . . . . . . 1 . . . . . . . . . . . . . . . . . . . . . . . . Intercept . | . . . . . . . . . . . . . . . . . . . . . . . . . . . . . . . . . Searches Triggered 8 | . . . . . . . . 1 . . . . . . . . . . . . 6 . . . . . . . . . 1 . Data Miner Redirects 24 | . . . . . . . . . . . . . . . . 9 . . . . 1 . . . . 8 . . . . 6 . Construction Impeded 23 | . . . . . . . 1 8 . . . . . . . 6 . . . . 1 . . . . 2 . . . . 5 . Haulers Reinforced 4 | . . . . . . . . . . . . . . . . . . . . . 2 . . . . 1 . . . . 1 . Active Scanning Responses . | . . . . . . . . . . . . . . . . . . . . . . . . . . . . . . . . . Cargo Convoy Interrupts 2 | . . . . . . . . 1 . . . . . . . . . . . . 1 . . . . . . . . . . . Stealth | -11 -10 -10 -10 -9 -8 -8 -8 -7 -7 -7 -7 -7 -6 -6 -6 -6 -6 -6 -6 -5 -5 -5 -5 -5 -4 -4 -4 -4 -4 -3 -3 -2 --------- Run | Scr Mat Min Exi Min Mat Gar Sto Fac Gar Fac Low Dat Pro Fac Was Fac Low Low Zio Pro Fac Upp Upp Zhi Pro Fac Upp Upp War Pro Res Res Distress Signals 36 | . 1 . . . 1 1 2 1 . . . . . 1 . 4 . . . . 8 . . . . 5 . . . . 3 9 Communications Jammed 40 | . . . . . . . . . . . . . . . . 7 . . . . . . . . . . . . . . 33 . Distress Signals 37 | . . . . . . . . . . . . . . . . 7 . . . . . . . . . . . . . . 30 . Times Spotted 1405 | . 26 . . 4 31 25 22 170 36 3 3 . 25 13 . 250 7 11 . 21 91 16 14 . 22 168 12 9 64 21 174 167 Peak Tracking Total 34 | . 3 . . 3 5 8 4 15 5 2 3 . 6 4 . 16 3 3 . 8 18 7 9 . 8 17 5 5 23 7 17 34 Tactical Retreats 84 | . . . . . 3 2 2 11 1 . . . . . . 17 . . . 1 15 . . . . 9 . . 3 . 8 12 Traps | -11 -10 -10 -10 -9 -8 -8 -8 -7 -7 -7 -7 -7 -6 -6 -6 -6 -6 -6 -6 -5 -5 -5 -5 -5 -4 -4 -4 -4 -4 -3 -3 -2 ------- Run | Scr Mat Min Exi Min Mat Gar Sto Fac Gar Fac Low Dat Pro Fac Was Fac Low Low Zio Pro Fac Upp Upp Zhi Pro Fac Upp Upp War Pro Res Res Traps Triggered 34 | . . . . . 1 . 1 6 7 1 . . . 2 . 6 . . . . 3 . . . . 3 . . . . 4 . Indirectly . | . . . . . . . . . . . . . . . . . . . . . . . . . . . . . . . . . Trap Hack Attempts . | . . . . . . . . . . . . . . . . . . . . . . . . . . . . . . . . . Triggered . | . . . . . . . . . . . . . . . . . . . . . . . . . . . . . . . . . Disarmed . | . . . . . . . . . . . . . . . . . . . . . . . . . . . . . . . . . Reprogrammed 3 | . . . . . 3 . . . . . . . . . . . . . . . . . . . . . . . . . . . Reused 3 | . . . . . 3 . . . . . . . . . . . . . . . . . . . . . . . . . . . Traps Extracted . | . . . . . . . . . . . . . . . . . . . . . . . . . . . . . . . . . Installed . | . . . . . . . . . . . . . . . . . . . . . . . . . . . . . . . . . Triggered 35 | . . . . . 3 . . . . . . . . . . . 2 . . . 4 . 3 . . . . . 23 . . . Machines | -11 -10 -10 -10 -9 -8 -8 -8 -7 -7 -7 -7 -7 -6 -6 -6 -6 -6 -6 -6 -5 -5 -5 -5 -5 -4 -4 -4 -4 -4 -3 -3 -2 ---------- Run | Scr Mat Min Exi Min Mat Gar Sto Fac Gar Fac Low Dat Pro Fac Was Fac Low Low Zio Pro Fac Upp Upp Zhi Pro Fac Upp Upp War Pro Res Res Machines Disabled 96 | . 1 . . . 2 2 4 10 14 1 . . 1 1 . 6 . 1 . . 11 3 1 . . 25 . 1 . 2 5 5 Max in Single Turn 21 | . 1 . . . 1 2 1 4 2 1 . . 1 1 . 2 . 1 . . 4 1 1 . . 21 . 1 . 1 1 1 Garrison Access 8 | . . . . . . . . 1 . . . . . . . 1 . . . . 1 . . . . 1 . . . . 2 2 Garrison Relay 1 | . . . . . . . . . 1 . . . . . . . . . . . . . . . . . . . . . . . Phase Generator 1 | . . . . . . . . . 1 . . . . . . . . . . . . . . . . . . . . . . . Machines Sabotaged . | . . . . . . . . . . . . . . . . . . . . . . . . . . . . . . . . . Garrisons Compromised 1 | . . . . . . . . . . . . . . . . . . . . . 1 . . . . . . . . . . . Overloaded Fab Kills . | . . . . . . . . . . . . . . . . . . . . . . . . . . . . . . . . . Hacking | -11 -10 -10 -10 -9 -8 -8 -8 -7 -7 -7 -7 -7 -6 -6 -6 -6 -6 -6 -6 -5 -5 -5 -5 -5 -4 -4 -4 -4 -4 -3 -3 -2 --------- Run | Scr Mat Min Exi Min Mat Gar Sto Fac Gar Fac Low Dat Pro Fac Was Fac Low Low Zio Pro Fac Upp Upp Zhi Pro Fac Upp Upp War Pro Res Res Machines Accessed 171 | . 7 . 2 . 9 2 7 31 3 4 . 4 . 3 . 22 1 1 . . 16 1 . 4 . 21 1 4 3 1 23 1 Terminals 83 | . 5 . . . 6 2 5 16 3 2 . . . 1 . 9 . . . . 8 1 . . . 10 . 1 . 1 12 1 Fabricators 22 | . . . . . . . . 6 . 1 . . . . . 6 . . . . 2 . . . . 3 . . . . 4 . Repair Stations 8 | . . . . . 1 . 2 1 . . . . . . . 2 . . . . 1 . . . . . . . . . 1 . Recycling Units 24 | . 2 . . . . . . 4 . . . . . 2 . 3 . . . . 4 . . . . 5 . . . . 4 . Scanalyzers 6 | . . . . . 1 . . 2 . . . . . . . 2 . . . . . . . . . 1 . . . . . . Garrison Access 9 | . . . . . 1 . . 2 . 1 . . . . . . . . . . 1 . . . . 2 . . . . 2 . Total Hacks 600 | . 23 . 2 . 37 5 16 112 10 7 . 31 . 10 . 99 1 1 . . 77 4 . 17 . 60 1 10 3 10 61 3 Successful 367 | . 10 . 2 . 23 1 5 62 1 2 . 31 . 3 . 67 1 1 . . 57 4 . 17 . 35 1 10 3 10 20 1 Failed 231 | . 13 . . . 13 4 11 50 9 5 . . . 7 . 32 . . . . 19 . . . . 25 . . . . 41 2 Catastrophic 34 | . . . . . . . 2 5 1 1 . . . 1 . . . . . . 4 . . . . 6 . . . . 14 . Database Lockouts 2 | . . . . . 1 . . . . . . . . . . . . . . . 1 . . . . . . . . . . . Manual 219 | . 14 . 1 . 8 . 2 43 . 4 . . . 7 . 37 . . . . 40 . . . . 34 . . 1 . 28 . Terminals 326 | . 19 . . . 28 5 11 72 10 4 . . . 2 . 40 . . . . 53 4 . . . 31 . 3 . 10 31 3 Fabricators 60 | . . . . . . . . 18 . 2 . . . . . 18 . . . . 6 . . . . 6 . . . . 10 . Repair Stations 18 | . . . . . 4 . 5 1 . . . . . . . 4 . . . . 2 . . . . . . . . . 2 . Recycling Units 76 | . 4 . . . . . . 11 . . . . . 8 . 12 . . . . 15 . . . . 15 . . . . 11 . Scanalyzers 43 | . . . . . 4 . . 8 . . . . . . . 25 . . . . . . . . . 6 . . . . . . Garrison Access 14 | . . . . . 1 . . 2 . 1 . . . . . . . . . . 1 . . . . 2 . . . . 7 . Terminal Hacks 186 | . 9 . 2 . 14 1 2 23 1 1 . 31 . . . 13 1 1 . . 27 4 . 17 . 10 1 10 3 10 4 1 Record 42 | . . . 1 . . . . . . . . 11 . . . . . . . . 1 4 . 5 . . . 8 2 10 . . Part Schematic 25 | . . . . . . . . 5 . . . 10 . . . 2 . . . . 2 . . 4 . 2 . . . . . . Robot Schematic 8 | . . . . . . . . . . . . 7 . . . 1 . . . . . . . . . . . . . . . . Robot Analysis 14 | . 6 . . . 1 . . 1 . . . . . . . . . . . . 2 . . 4 . . . . . . . . Prototype ID Bank 19 | . 1 . . . 2 . . 4 . . . 3 . . . 1 . . . . 3 . . 4 . 1 . . . . . . Open Door 8 | . . . . . . . 2 . . . . . . . . . 1 1 . . . . . . . . 1 2 1 . . . Level Access Points 2 | . . . . . 1 . . . . . . . . . . . . . . . 1 . . . . . . . . . . . Branch Access Points 6 | . . . . . . . . 1 . 1 . . . . . 1 . . . . 1 . . . . 1 . . . . . 1 Emergency Access Points 3 | . . . . . . . . . . . . . . . . 1 . . . . 2 . . . . . . . . . . . Machine Index 2 | . . . . . . . . 1 . . . . . . . . . . . . 1 . . . . . . . . . . . Terminal Index 4 | . . . . . . . . . . . . . . . . 1 . . . . 1 . . . . 1 . . . . 1 . Fabricator Index 2 | . . . . . . . . 1 . . . . . . . . . . . . . . . . . 1 . . . . . . Recycling Unit Index 3 | . . . . . . . . . . . . . . . . 1 . . . . . . . . . 1 . . . . 1 . Garrison Index 1 | . . . . . 1 . . . . . . . . . . . . . . . . . . . . . . . . . . . Alert Level 2 | . . . . . 1 . . 1 . . . . . . . . . . . . . . . . . . . . . . . . Unreport Threat 10 | . . . . . 1 . . 3 . . . . . . . 1 . . . . 2 . . . . 1 . . . . 2 . Locate Traps 8 | . 2 . . . . . . 2 . . . . . . . 2 . . . . 1 . . . . 1 . . . . . . Reprogram Traps 1 | . . . . . 1 . . . . . . . . . . . . . . . . . . . . . . . . . . . Maintenance Status 2 | . . . . . 1 . . . . . . . . . . . . . . . 1 . . . . . . . . . . . Security Status 2 | . . . . . . . . . . . . . . . . 1 . . . . 1 . . . . . . . . . . . Patrol Status 1 | . . . . . . . . 1 . . . . . . . . . . . . . . . . . . . . . . . . Transport Status 1 | . . . . . . . . . . . . . . . . . . . . . 1 . . . . . . . . . . . Garrison Status 1 | . . . . . . . . . . . . . . . . . . . . . 1 . . . . . . . . . . . Recall Investigation 1 | . . . . . . . . . . . . . . . . . . . . . 1 . . . . . . . . . . . Recall Extermination 1 | . . . . . . . . . . . . . . . . 1 . . . . . . . . . . . . . . . . Recall Reinforcements 1 | . . . . . . . . . . . . . . . . . . . . . 1 . . . . . . . . . . . Hauler Manifests 5 | . . . . . 2 . . 1 . . . . . . . . . . . . 1 . . . . 1 . . . . . . Registered Components 3 | . . . . . 1 . . 1 . . . . . . . . . . . . 1 . . . . . . . . . . . Registered Prototypes 1 | . . . . . 1 . . . . . . . . . . . . . . . . . . . . . . . . . . . Zone Layout 4 | . . . . . 1 . . 1 . . . . . . . . . . . . 2 . . . . . . . . . . . Garrison Registry 2 | . . . . . . 1 . . 1 . . . . . . . . . . . . . . . . . . . . . . . EX-Prototype ID Bank 1 | . . . 1 . . . . . . . . . . . . . . . . . . . . . . . . . . . . . Fabricator Hacks 43 | . . . . . . . . 15 . . . . . . . 13 . . . . 5 . . . . 6 . . . . 4 . Network Status 3 | . . . . . . . . 2 . . . . . . . . . . . . . . . . . . . . . . 1 . Load Schematic 19 | . . . . . . . . 6 . . . . . . . 6 . . . . 2 . . . . 3 . . . . 2 . Build 21 | . . . . . . . . 7 . . . . . . . 7 . . . . 3 . . . . 3 . . . . 1 . Repair Station Hacks 15 | . . . . . 4 . 3 1 . . . . . . . 4 . . . . 2 . . . . . . . . . 1 . Scan Component 8 | . . . . . 2 . 2 . . . . . . . . 2 . . . . 1 . . . . . . . . . 1 . Repair 6 | . . . . . 2 . 1 . . . . . . . . 2 . . . . 1 . . . . . . . . . . . Refit 1 | . . . . . . . . 1 . . . . . . . . . . . . . . . . . . . . . . . . Recycling Unit Hacks 10 | . 1 . . . . . . . . . . . . . . 1 . . . . 5 . . . . 2 . . . . 1 . Retrieve Matter 1 | . . . . . . . . . . . . . . . . . . . . . 1 . . . . . . . . . . . Retrieve Components 9 | . 1 . . . . . . . . . . . . . . 1 . . . . 4 . . . . 2 . . . . 1 . Scanalyzer 41 | . . . . . 4 . . 8 . . . . . . . 24 . . . . . . . . . 5 . . . . . . Insert Component 19 | . . . . . 2 . . 4 . . . . . . . 11 . . . . . . . . . 2 . . . . . . Analyze 22 | . . . . . 2 . . 4 . . . . . . . 13 . . . . . . . . . 3 . . . . . . Garrison Access Hacks 7 | . . . . . 1 . . 2 . . . . . . . . . . . . 1 . . . . 1 . . . . 2 . Unlock Access 2 | . . . . . 1 . . 1 . . . . . . . . . . . . . . . . . . . . . . . . Seal Access 5 | . . . . . . . . 1 . . . . . . . . . . . . 1 . . . . 1 . . . . 2 . Unauthorized Hacks 65 | . . . . . . . . 13 . 1 . . . 3 . 12 . . . . 17 . . . . 11 . . . . 8 . Terminals 35 | . . . . . . . . 8 . 1 . . . . . 6 . . . . 10 . . . . 5 . . . . 5 . Track 6 | . . . . . . . . 1 . . . . . . . 1 . . . . 3 . . . . 1 . . . . . . Assimilate 3 | . . . . . . . . . . . . . . . . 1 . . . . 1 . . . . . . . . . 1 . Botnet 23 | . . . . . . . . 6 . 1 . . . . . 3 . . . . 5 . . . . 4 . . . . 4 . Operators 3 | . . . . . . . . 1 . . . . . . . 1 . . . . 1 . . . . . . . . . . . Fabricators . | . . . . . . . . . . . . . . . . . . . . . . . . . . . . . . . . . Repair Stations . | . . . . . . . . . . . . . . . . . . . . . . . . . . . . . . . . . Recycling Units 30 | . . . . . . . . 5 . . . . . 3 . 6 . . . . 7 . . . . 6 . . . . 3 . Reject 10 | . . . . . . . . 1 . . . . . 1 . 2 . . . . 3 . . . . 2 . . . . 1 . Recyclers 4 | . . . . . . . . . . . . . . 1 . 1 . . . . 1 . . . . 1 . . . . . . Mask 16 | . . . . . . . . 4 . . . . . 1 . 3 . . . . 3 . . . . 3 . . . . 2 . Scanalyzers . | . . . . . . . . . . . . . . . . . . . . . . . . . . . . . . . . . Garrison Access . | . . . . . . . . . . . . . . . . . . . . . . . . . . . . . . . . . Data Cores Recovered . | . . . . . . . . . . . . . . . . . . . . . . . . . . . . . . . . . Used . | . . . . . . . . . . . . . . . . . . . . . . . . . . . . . . . . . Hacking Detections 134 | . 6 . . . 6 2 5 28 3 3 . . . 3 . 21 . . . . 13 1 . . . 18 . 1 . 1 22 1 Full Trace Events 45 | . . . . . 1 . 1 11 3 . . . . . . 8 . . . . 2 1 . . . 8 . 1 . . 8 1 Feedback Events 3 | . . . . . . . . . 1 . . . . . . 1 . . . . . . . . . . . . . . 1 . Corruption 3 | . . . . . . . . . 1 . . . . . . 1 . . . . . . . . . . . . . . 1 . Feedback Blocked . | . . . . . . . . . . . . . . . . . . . . . . . . . . . . . . . . . Robot Schematics Acquired 8 | . . . . . . . . . . . . 7 . . . 1 . . . . . . . . . . . . . . . . Robots Built 2 | . . . . . . . . 2 . . . . . . . . . . . . . . . . . . . . . . . . Authchips . | . . . . . . . . . . . . . . . . . . . . . . . . . . . . . . . . . Time 58 | . . . . . . . . 58 . . . . . . . . . . . . . . . . . . . . . . . . Total Robot Build Rating 6 | . . . . . . . . 6 . . . . . . . . . . . . . . . . . . . . . . . . Part Schematics Acquired 38 | . . . . . 2 . . 8 . . . 10 . . . 8 . . . . 2 . . 4 . 4 . . . . . . Parts Built 25 | . . . . . . . . 9 . . . . . . . 8 . . . . 3 . . . . 4 . . . . 1 . Authchips . | . . . . . . . . . . . . . . . . . . . . . . . . . . . . . . . . . Time 1250 | . . . . . . . . 211 . . . . . . . 464 . . . . 296 . . . . 184 . . . . 95 . Total Part Build Rating 122 | . . . . . . . . 29 . . . . . . . 42 . . . . 17 . . . . 29 . . . . 5 . Parts Repaired 6 | . . . . . 2 . 1 . . . . . . . . 2 . . . . 1 . . . . . . . . . . . Time 334 | . . . . . 70 . 44 . . . . . . . . 198 . . . . 22 . . . . . . . . . . . Parts Recycled . | . . . . . . . . . . . . . . . . . . . . . . . . . . . . . . . . . Recycled Matter . | . . . . . . . . . . . . . . . . . . . . . . . . . . . . . . . . . Retrieved Matter . | . . . . . . . . . . . . . . . . . . . . . . . . . . . . . . . . . Retrieved Components 35 | . 1 . . . . . . . . . . . . . . 2 . . . . 21 . . . . 10 . . . . 1 . Parts Scanalyzed 14 | . . . . . 2 . . 4 . . . . . . . 6 . . . . . . . . . 2 . . . . . . Part Schematics Acquired 13 | . . . . . 2 . . 3 . . . . . . . 6 . . . . . . . . . 2 . . . . . . Parts Damaged 3 | . . . . . . . . . . . . . . . . 3 . . . . . . . . . . . . . . . . Bothacking | -11 -10 -10 -10 -9 -8 -8 -8 -7 -7 -7 -7 -7 -6 -6 -6 -6 -6 -6 -6 -5 -5 -5 -5 -5 -4 -4 -4 -4 -4 -3 -3 -2 ------------ Run | Scr Mat Min Exi Min Mat Gar Sto Fac Gar Fac Low Dat Pro Fac Was Fac Low Low Zio Pro Fac Upp Upp Zhi Pro Fac Upp Upp War Pro Res Res Used RIF Installer . | . . . . . . . . . . . . . . . . . . . . . . . . . . . . . . . . . Robots Hacked . | . . . . . . . . . . . . . . . . . . . . . . . . . . . . . . . . . Non-combat . | . . . . . . . . . . . . . . . . . . . . . . . . . . . . . . . . . Combat . | . . . . . . . . . . . . . . . . . . . . . . . . . . . . . . . . . Robot Hacks Applied . | . . . . . . . . . . . . . . . . . . . . . . . . . . . . . . . . . Relay Couplers Released 17 | . . . . . . . . . 5 . . . . . . 3 . . . . . . . . . 2 . . . . . 7 Machine Destruction 14 | . . . . . . . . . 5 . . . . . . 3 . . . . . . . . . 2 . . . . . 4 Programmers 3 | . . . . . . . . . . . . . . . . . . . . . . . . . . . . . . . . 3 Fabnet Peak Effective % . | . . . . . . . . . . . . . . . . . . . . . . . . . . . . . . . . . Robots Rewired 22 | . . . . . . 3 . . 3 . . . 1 . . . . . . 2 . 4 2 . 2 . 1 . 4 . . . Allies Hacked . | . . . . . . . . . . . . . . . . . . . . . . . . . . . . . . . . . Hacks Repelled 1 | . . . . . . . . . . . . . . . . . . . . . 1 . . . . . . . . . . . Allies | -11 -10 -10 -10 -9 -8 -8 -8 -7 -7 -7 -7 -7 -6 -6 -6 -6 -6 -6 -6 -5 -5 -5 -5 -5 -4 -4 -4 -4 -4 -3 -3 -2 -------- Run | Scr Mat Min Exi Min Mat Gar Sto Fac Gar Fac Low Dat Pro Fac Was Fac Low Low Zio Pro Fac Upp Upp Zhi Pro Fac Upp Upp War Pro Res Res Total Allies 44 | . . 1 . . . 3 10 5 5 . . . 2 . . 1 . . . 2 1 4 2 . 2 . 1 . 4 . 1 . Largest Group 10 | . . 1 1 . . 2 10 10 5 2 . . 2 1 . 1 . . . 2 1 4 6 5 5 4 1 . 4 . 1 . Highest-Rated Group 235 | . . 31 31 . . 32 173 173 235 187 . . 126 96 . 26 . . . 59 26 124 203 172 172 136 48 . 220 . 26 . Highest-Rated Ally 96 | . . 31 31 . . 16 29 31 95 95 . . 96 96 . 26 . . . 30 26 31 49 49 49 47 48 . 65 . 26 . Warlord Squad Rendezvous 8 | . . . . . . . . . . . . . . . . 6 . . . . 2 . . . . . . . . . . . Dakka 1 | . . . . . . . . . . . . . . . . 1 . . . . . . . . . . . . . . . . Infantry 1 | . . . . . . . . . . . . . . . . . . . . . 1 . . . . . . . . . . . Muscle 1 | . . . . . . . . . . . . . . . . 1 . . . . . . . . . . . . . . . . Ranger 1 | . . . . . . . . . . . . . . . . 1 . . . . . . . . . . . . . . . . Pyro 1 | . . . . . . . . . . . . . . . . 1 . . . . . . . . . . . . . . . . Chimera 1 | . . . . . . . . . . . . . . . . . . . . . 1 . . . . . . . . . . . Ghost 2 | . . . . . . . . . . . . . . . . 2 . . . . . . . . . . . . . . . . Total Orders 21 | . . . . . . . . 8 1 . . . . . . 2 . . . . . . . . . 7 . . . 1 2 . STAY 2 | . . . . . . . . 1 1 . . . . . . . . . . . . . . . . . . . . . . . FOLLOW 1 | . . . . . . . . 1 . . . . . . . . . . . . . . . . . . . . . . . . EXPLORE 17 | . . . . . . . . 5 . . . . . . . 2 . . . . . . . . . 7 . . . 1 2 . RETURN 1 | . . . . . . . . 1 . . . . . . . . . . . . . . . . . . . . . . . . Ally Attacks 351 | . . . . . . . 24 80 44 8 . . 33 5 . . . . . 9 . 20 29 . 61 22 2 . 14 . . . Total Damage 7251 | . . . . . . . 316 1194 1097 206 . . 872 138 . . . . . 139 . 272 535 . 1107 465 92 . 818 . . . Kills 67 | . . . . . . . 2 13 14 1 . . 9 3 . . . . . . . 1 4 . 12 6 . . 2 . . . Allies Corrupted . | . . . . . . . . . . . . . . . . . . . . . . . . . . . . . . . . . Allies Melted 2 | . . . . . . . . . . . . . . . . . . . . . . . . . . . . . 1 . . 1 Intel | -11 -10 -10 -10 -9 -8 -8 -8 -7 -7 -7 -7 -7 -6 -6 -6 -6 -6 -6 -6 -5 -5 -5 -5 -5 -4 -4 -4 -4 -4 -3 -3 -2 ------- Run | Scr Mat Min Exi Min Mat Gar Sto Fac Gar Fac Low Dat Pro Fac Was Fac Low Low Zio Pro Fac Upp Upp Zhi Pro Fac Upp Upp War Pro Res Res Robot Analysis Total 14 | . 6 . . . 1 . . 1 . . . . . . . . . . . . 2 . . 4 . . . . . . . . Derelict Logs Recovered 20 | . . . . 1 . . . . . . 2 . 2 . . . 1 1 . 2 . 1 2 . 3 . 2 3 . . . . Drone Launches 24 | . . . . . . . . 4 . . . . . . . 2 . . . . . . . . . 7 . . . 7 4 . Drone Recoveries 15 | . . . . . . . . 3 . . . . . . . . . . . . . . . . . 2 . . . 7 3 . Decoded 0b10 Intel 91 | . . . . . . . . . . . . . . . . . . . . . 91 . . . . . . . . . . . Traps 13 | . . . . . . . . . . . . . . . . . . . . . 13 . . . . . . . . . . . Emergency Access 6 | . . . . . . . . . . . . . . . . . . . . . 6 . . . . . . . . . . . Items 54 | . . . . . . . . . . . . . . . . . . . . . 54 . . . . . . . . . . . Machines 2 | . . . . . . . . . . . . . . . . . . . . . 2 . . . . . . . . . . . Patrols 7 | . . . . . . . . . . . . . . . . . . . . . 7 . . . . . . . . . . . Guards 9 | . . . . . . . . . . . . . . . . . . . . . 9 . . . . . . . . . . . Exploration | -11 -10 -10 -10 -9 -8 -8 -8 -7 -7 -7 -7 -7 -6 -6 -6 -6 -6 -6 -6 -5 -5 -5 -5 -5 -4 -4 -4 -4 -4 -3 -3 -2 ------------- Run | Scr Mat Min Exi Min Mat Gar Sto Fac Gar Fac Low Dat Pro Fac Was Fac Low Low Zio Pro Fac Upp Upp Zhi Pro Fac Upp Upp War Pro Res Res Turns Passed 61321 | 64 1311 164 486 273 2178 1567 1014 6563 1783 468 347 172 1159 936 793 8709 587 1216 1567 2001 4017 1560 1477 285 1320 4472 1718 1414 1505 1869 6680 1646 Spaces Moved 39185 | 28 619 76 345 113 688 487 325 5847 876 263 171 99 545 365 347 5192 348 732 1033 1160 4437 885 932 170 818 3968 960 842 837 1104 4159 414 Core 1 | . . . . . . . . . . . . . . . . . . . . . 1 . . . . . . . . . . . Treads 3285 | . . . . . 671 418 . 404 . . . . . . . 574 . . . . . 1 . . . 110 . . . . 693 414 Legs 677 | 28 619 13 . . 17 . . . . . . . . . . . . . . . . . . . . . . . . . . . Wheels 16996 | . . 63 345 113 . 69 325 474 876 263 171 99 545 365 347 958 348 732 1033 1160 540 884 932 170 818 996 960 842 837 1104 627 . Hover 5344 | . . . . . . . . . . . . . . . . 3629 . . . . 1715 . . . . . . . . . . . Flight 12882 | . . . . . . . . 4969 . . . . . . . 31 . . . . 2181 . . . . 2862 . . . . 2839 . Fastest Speed 15 | 120 120 140 140 215 190 236 225 26 156 156 185 170 161 160 180 40 146 146 147 147 34 147 147 147 147 30 150 110 130 150 15 241 Average Speed 110 | 120 174 172 140 215 236 240 225 57 156 162 185 171 192 173 203 95 146 146 147 155 59 148 147 147 147 72 169 152 149 152 81 256 Slowest Speed 1410 | 120 330 330 140 215 240 270 270 250 156 185 185 185 235 250 250 1410 146 147 180 165 350 326 147 147 147 400 170 170 170 210 246 275 Overloaded Moves 75 | . . . . . . . . . . . . . . . . . . . . . . . . . . . . . . . 75 . Propulsion Burnouts . | . . . . . . . . . . . . . . . . . . . . . . . . . . . . . . . . . Robots Hopped 80 | . . . . . . . . 25 . . . . . . . . . . . . 19 . . . . 29 . . . . 7 . Cave-ins Triggered 8 | . . . . . . . . . . . . . . 2 . 1 . 2 . . . . . . . . . 1 . 1 1 . Teleports 1 | . . . . . . . . . . . . . . . . . . . . . . . . . . . . . . . . 1 Exploration Rate (%) 66 | 3 93 14 70 19 64 49 56 95 92 10 21 70 82 15 96 82 56 77 85 98 60 97 97 61 92 72 97 92 86 97 83 14 Regions Visited 32 Branch Regions 19 Pre-discovered Areas 12 | . . . 1 . . . . . . . 1 1 1 . . . . . 1 1 . . . 3 2 . 1 . . . . . Known Exits Taken 14 | . . . . . 1 . 1 1 . 1 . . . . . 1 1 . . 1 1 1 . . 1 1 . 1 . 1 1 . Unknown Exits Taken 14 | 1 1 1 1 1 . . . . . . 1 1 1 . . . . 1 1 . . . 1 1 . . 1 . 1 . . . Scrap Searched 43 | . . . . . . . . . . . 2 . 3 . . . 3 9 2 1 . 3 2 . 4 . 5 4 . 5 . . Spaces Dug 797 | . . . . . 1 26 4 144 22 3 . . . 24 . 155 17 6 . 11 135 7 2 . 4 87 1 3 1 4 134 6 Terrain Destroyed 4077 | 7 9 . . . 7 68 31 560 127 8 6 . 82 63 2 850 23 79 . 105 291 30 11 . 12 609 122 39 113 124 517 182 Melee 309 | . . . . . . . . 94 . . . . . . . 74 . . . . . . . . . 58 . . . 1 82 . Projectile 918 | . . . . . 1 16 24 90 1 8 6 . 6 63 2 78 6 26 . 14 183 13 11 . 12 99 25 11 13 40 139 31 AOE 2850 | 7 9 . . . 6 52 7 376 126 . . . 76 . . 698 17 53 . 91 108 17 . . . 452 97 28 100 83 296 151 Terrain Rammed . | . . . . . . . . . . . . . . . . . . . . . . . . . . . . . . . . . Walls Destroyed . | . . . . . . . . . . . . . . . . . . . . . . . . . . . . . . . . . Machines Disabled . | . . . . . . . . . . . . . . . . . . . . . . . . . . . . . . . . . Actions | -11 -10 -10 -10 -9 -8 -8 -8 -7 -7 -7 -7 -7 -6 -6 -6 -6 -6 -6 -6 -5 -5 -5 -5 -5 -4 -4 -4 -4 -4 -3 -3 -2 --------- Run | Scr Mat Min Exi Min Mat Gar Sto Fac Gar Fac Low Dat Pro Fac Was Fac Low Low Zio Pro Fac Upp Upp Zhi Pro Fac Upp Upp War Pro Res Res Total 53388 | 38 756 95 349 124 1108 753 532 8481 1148 289 187 102 619 556 414 8437 388 817 1079 1289 5536 1106 1023 198 917 5222 1023 933 1033 1248 6854 734 Wait 7712 | . 40 . . . 233 42 144 1853 19 2 2 . 16 75 8 2246 1 13 1 64 457 34 23 . 27 572 3 9 36 39 1702 51 Move 38995 | 27 618 75 344 112 688 486 324 5797 875 262 170 98 544 363 346 5190 347 729 1032 1159 4398 884 931 169 817 3914 959 841 836 1103 4143 414 Hop 74 | . . . . . . . . 24 . . . . . . . . . . . . 19 . . . . 24 . . . . 7 . Pick Up 660 | . 24 2 2 . 27 24 7 99 8 2 2 . . 2 8 111 3 3 7 3 87 3 2 1 1 77 5 25 8 6 88 23 Fast Attach 469 | 1 1 . . . 13 5 2 41 3 4 . 2 5 5 9 63 1 8 13 . 61 6 7 7 4 57 4 9 21 11 82 24 Attach 298 | . . . . 1 7 13 . 21 3 1 2 . 2 7 1 41 2 4 1 1 48 7 3 2 2 50 1 3 2 7 39 27 Detach 207 | . . . . . 3 4 . 19 . . . . 3 . 1 38 1 1 1 . 44 9 2 2 2 38 1 1 . 5 28 4 Swap 523 | . 8 2 . . 17 12 3 64 7 3 1 . 7 9 4 102 4 3 8 13 38 9 7 4 6 33 7 8 11 11 105 17 Drop 885 | . 13 2 3 1 37 26 7 118 11 4 2 2 3 8 14 137 3 12 16 1 107 7 9 7 6 117 9 10 29 14 136 14 Fire 2748 | 10 51 14 . 10 79 106 44 319 132 11 8 . 22 85 23 389 26 42 . 38 277 45 25 . 30 237 25 27 65 51 408 149 Melee 442 | . . . . . . . . 124 . . . . . . . 106 . . . . . . . 6 . 85 . . . 1 109 11 Ram 1 | . . . . . . . 1 . . . . . . . . . . . . . . . . . . . . . . . . . Kick 1 | . 1 . . . . . . . . . . . . . . . . . . . . . . . . . . . . . . . Crush 5 | . . . . . 4 . . 1 . . . . . . . . . . . . . . . . . . . . . . . . Escape Stasis 83 | . . . . . . . . . 40 . . . . 2 . 14 . 2 . . . . . . . 18 . . . . 7 . Rewire 285 | . . . . . . 35 . 1 50 . . . 17 . . . . . . 10 . 102 14 . 22 . 9 . 25 . . . Trap . | . . . . . . . . . . . . . . . . . . . . . . . . . . . . . . . . . Miscellaneous . | . . . . . . . . . . . . . . . . . . . . . . . . . . . . . . . . . Route ------- -11/Scrapyard -10/Materials (discovered 4 exits: [*Mat x3] / [*Min]) -10/Mines -10/Exiles -9/Mines -8/Materials (discovered 5 exits: *Fac x3 / *Sto / Gar) -8/Garrison (discovered 4 exits: *Sto x4) -8/Storage -7/Factory (discovered 6 exits: *Fac x3 / *Low x2 / Gar) -7/Garrison (discovered 3 exits: *Fac x3) -7/Factory (discovered 2 exits: *Low x2) -7/Lower Caves -7/Data Miner -6/Proximity Caves -6/Factory -6/Waste -6/Factory (discovered 7 exits: *Fac x3 / *Low x2 / *Ext x2) -6/Lower Caves -6/Lower Caves -6/Zion -5/Proximity Caves -5/Factory (discovered 6 exits: Fac x4 / *Upp x2) -5/Upper Caves -5/Upper Caves (discovered 2 exits: *Fac / *Zhi) -5/Zhirov -4/Proximity Caves -4/Factory (discovered 5 exits: *Res x2 / *Upp x2 / *Arm) -4/Upper Caves -4/Upper Caves (discovered 2 exits: *Res / *War) -4/Warlord -3/Proximity Caves -3/Research (discovered 5 exits: *Res x3 / *Qua x2) -2/Research (discovered 2 exits: Tes x2) History --------- Turn | Location | Event 1 | -11/Scrapyard | Discovered new exit (range 2) 65 | -11/Scrapyard | Entered Materials 171 | -10/Materials | Discovered new exit (range 14) 275 | -10/Materials | Discovered new exit (range 16) 315 | -10/Materials | Build established: Mutant 420 | -10/Materials | Discovered new exit (range 6) 670 | -10/Materials | Discovered new exit (range 8) 1376 | -10/Materials | Entered Mines 1403 | -10/Mines | Met a Derelict bent on vengeance 1459 | -10/Mines | Received a Mining Laser from a helpful Derelict 1533 | -10/Mines | Deemed a non-threat by the Exiles lab entrance 1535 | -10/Mines | Discovered new exit (range 5) 1540 | -10/Mines | Entered Exiles 1540 | -10/Exiles | Accompanied by 1 ally 1573 | -10/Exiles | Met 8R-AWN 1596 | -10/Exiles | Met EX-HEX 1672 | -10/Exiles | Met EX-DEC 1697 | -10/Exiles | Learned location of Zion (-6) 1818 | -10/Exiles | Met EX-BIN 1838 | -10/Exiles | Aligned with FarCom system 1839 | -10/Exiles | Given EX-Vault access code 1871 | -10/Exiles | Opened EX-Vault 1882 | -10/Exiles | Found 0b10 Alert Chip 1914 | -10/Exiles | Warned to stay clear of 0b10 Research branches 2014 | -10/Exiles | Discovered new exit (range 10) 2026 | -10/Exiles | Left Exiles lab with 0b10 Alert Chip 2026 | -10/Exiles | Entered Mines 2070 | -9/Mines | Learned Materials emergency access door positions 2267 | -9/Mines | Discovered new exit (range 14) 2298 | -9/Mines | Assembled infested the area 2299 | -9/Mines | Entered Materials 2299 | -8/Materials | Evolved 4 slots: Propulsion x2, Utility x2 2317 | -8/Materials | Discovered new exit (range 15) 2979 | -8/Materials | Discovered new exit (range 10) 3250 | -8/Materials | Identified exit to Factory 3250 | -8/Materials | Central database locked down 3695 | -8/Materials | Repaired EM Pulse Cannon 3728 | -8/Materials | Repaired Hvy. Assault Rifle 4473 | -8/Materials | Identified exit to Garrison 4477 | -8/Materials | Entered Garrison 4496 | -8/Garrison | Discovered new exit (range 69) 4496 | -8/Garrison | Discovered new exit (range 87) 4496 | -8/Garrison | Discovered new exit (range 73) 4496 | -8/Garrison | Discovered new exit (range 81) 4605 | -8/Garrison | Triggered checkpoint 4686 | -8/Garrison | Triggered checkpoint 4688 | -8/Garrison | Triggered checkpoint 4718 | -8/Garrison | Destroyed 9 combat bots 4889 | -8/Garrison | Spotted B-75 Beast 4889 | -8/Garrison | Spotted B-75 Beast 4960 | -8/Garrison | Destroyed B-75 Beast 5004 | -8/Garrison | Destroyed B-75 Beast 5446 | -8/Garrison | Triggered checkpoint 5682 | -8/Garrison | Triggered checkpoint 6044 | -8/Garrison | Entered Storage 6044 | -8/Storage | Accompanied by 3 allies 6111 | -8/Storage | Build established: Hauler-Mutant 6444 | -8/Storage | First assault squad dispatched 6954 | -8/Storage | Repaired Imp. Cooling System 7007 | -8/Storage | Discovered exit to Factory (range 16) 7018 | -8/Storage | Assisted by bots powering up and referring to "LRC-V3" 7058 | -8/Storage | Entered Factory 7058 | -7/Factory | Accompanied by 10 allies 7058 | -7/Factory | Evolved 2 slots: Utility x2 7136 | -7/Factory | P-60 Hacker assimilated allied Trooper 3f 7326 | -7/Factory | Build established: Commander-Mutant 7577 | -7/Factory | Identified exit to Lower Caves 7625 | -7/Factory | P-60 Hacker assimilated allied Trooper 3h 7635 | -7/Factory | Build established: Hauler-Mutant 7814 | -7/Factory | Discovered new exit (range 5) 7993 | -7/Factory | Discovered new exit (range 15) 8061 | -7/Factory | Fabricated Arm. Treads (x2) 8108 | -7/Factory | Build established: Hacker-Scout 8187 | -7/Factory | Garrison activated, responded to threat 8188 | -7/Factory | Cargo convoy interrupted 8239 | -7/Factory | Fabricated Imp. Shield Generator? 8447 | -7/Factory | Fabricated Humpback (x1) 8771 | -7/Factory | Build established: Hacker-Sprinter 8841 | -7/Factory | Found Prototype Launcher 8841 | -7/Factory | Identified Rocket Array 9172 | -7/Factory | Fabricated Hrd. Heavy Armor Plating? 9175 | -7/Factory | Discovered new exit (range 17) 9189 | -7/Factory | Fabricated H-55 Commando? 9203 | -7/Factory | Fabricated Arm. Treads? 9479 | -7/Factory | Identified exit to Garrison 9565 | -7/Factory | Fabricated Hrd. Heavy Armor Plating? 10258 | -7/Factory | Search patrols dispatched 10398 | -7/Factory | Build established: Mutant 11058 | -7/Factory | First assault squad dispatched 12342 | -7/Factory | High security lockdown imminent 12422 | -7/Factory | High security lockdown engaged 12451 | -7/Factory | Destroyed 12 combat bots 12671 | -7/Factory | Destroyed 23 combat bots 12736 | -7/Factory | Destroyed 8 combat bots 12890 | -7/Factory | Sterilization system engaged 12890 | -7/Factory | Non-combat units ordered to evacuate 12913 | -7/Factory | Destroyed 22 combat bots 12990 | -7/Factory | Combat units ordered to evacuate 13190 | -7/Factory | Ambient heat levels rising (+10) 13340 | -7/Factory | Ambient heat levels rising (+10) 13490 | -7/Factory | Ambient heat levels rising (+10) 13530 | -7/Factory | Build established: Hauler-Mutant 13621 | -7/Factory | Entered Garrison 13621 | -7/Garrison | Accompanied by 3 allies 13989 | -7/Garrison | Rescued a captive Derelict 14040 | -7/Garrison | Triggered checkpoint 14060 | -7/Garrison | Triggered checkpoint 14086 | -7/Garrison | Triggered checkpoint 14259 | -7/Garrison | Discovered new exit (range 11) 14320 | -7/Garrison | Triggered checkpoint 14363 | -7/Garrison | Phase Generator disabled 14375 | -7/Garrison | Found embedded Infiltrators 14457 | -7/Garrison | Triggered checkpoint 14560 | -7/Garrison | Discovered new exit (range 13) 14610 | -7/Garrison | Triggered checkpoint 14828 | -7/Garrison | Triggered checkpoint 14837 | -7/Garrison | Discovered new exit (range 11) 14861 | -7/Garrison | Triggered checkpoint 14892 | -7/Garrison | Discovered new exit (range 12) 14892 | -7/Garrison | Discovered new exit (range 100) 14892 | -7/Garrison | Discovered new exit (range 76) 15404 | -7/Garrison | Entered Factory 15404 | -7/Factory | Accompanied by 2 allies 15478 | -7/Factory | Build established: Hauler-Skirmisher 15804 | -7/Factory | First assault squad dispatched 15837 | -7/Factory | Build established: Hauler-Mutant 15872 | -7/Factory | Entered Lower Caves 15879 | -7/Lower Caves | Met a Warlord Commander 15880 | -7/Lower Caves | Learned location of Warlord (-4) 15886 | -7/Lower Caves | Found Encrypted Comm Array 15974 | -7/Lower Caves | Learned location of 1 exit from Factory 16037 | -7/Lower Caves | Learned Factory non-interactive machine intel 16208 | -7/Lower Caves | A Derelict revealed a hidden shortcut to meet someone special 16219 | -7/Lower Caves | Entered Data Miner 16220 | -7/Data Miner | Discovered new exit (range 6) 16253 | -7/Data Miner | Met Data Miner 16288 | -7/Data Miner | Learned location of Section 7 (-2) 16288 | -7/Data Miner | Acquired the access code to Warlord's prototype stash 16316 | -7/Data Miner | Received God Mode back door access code from Data Miner 16391 | -7/Data Miner | Entered Proximity Caves 16541 | -6/Proximity Caves | Escorted by Enhanced Grunt 16541 | -6/Proximity Caves | Attracted the attention of an 0b10 outpost 16600 | -6/Proximity Caves | Destroyed 9 combat bots 16692 | -6/Proximity Caves | Learned Factory interactive machine intel 16736 | -6/Proximity Caves | Attracted the attention of an 0b10 checkpoint 17371 | -6/Proximity Caves | Spotted B-75 Beast 17387 | -6/Proximity Caves | Destroyed B-75 Beast 17489 | -6/Proximity Caves | Discovered new exit (range 4) 17550 | -6/Proximity Caves | Entered Factory 17550 | -6/Factory | Accompanied by 1 ally 17550 | -6/Factory | Evolved 2 slots: Utility x2 17551 | -6/Factory | Identified exit to Factory 17552 | -6/Factory | Loaded intel: 206 non-interactive machine locations 17553 | -6/Factory | Loaded intel: 54 interactive machine locations 17820 | -6/Factory | Found Prototype Device 17820 | -6/Factory | Identified Exp. Thermal Shield 18345 | -6/Factory | Crushed by falling debris 18351 | -6/Factory | Crushed by falling debris 18382 | -6/Factory | Lost 3 parts (1p1n1u) 18416 | -6/Factory | System corruption reached 10% 18486 | -6/Factory | Sucked down chute 18486 | -6/Factory | Entered Waste 18486 | -6/Waste | The area was eerily silent 19253 | -6/Waste | Discovered new exit (range 11) 19279 | -6/Waste | Entered Factory 19743 | -6/Factory | Build established: Hacker-Mutant 20305 | -6/Factory | Build established: Hacker-Ninja 20339 | -6/Factory | Repaired Broken Hdn. Centrium Wheel? 20411 | -6/Factory | Fabricated Impulse Thruster Array? 20420 | -6/Factory | Repaired Centrium Wheel? 20520 | -6/Factory | Identified exit to Lower Caves 20520 | -6/Factory | Identified exit to Extension 20520 | -6/Factory | Crushed by falling debris 20675 | -6/Factory | Incoming investigation squad redirected 20703 | -6/Factory | Incoming investigation squad redirected 20706 | -6/Factory | Fabricated Weapon Mount (x2) 20811 | -6/Factory | Build established: Hacker-Mutant 20882 | -6/Factory | Fabricated Hdn. Centrium Wheel? 20888 | -6/Factory | Discovered exit to Factory (range 9) 21109 | -6/Factory | Fabricated Humpback (x1) 21110 | -6/Factory | Incoming investigation squad redirected 21263 | -6/Factory | Fabricated Antimatter Cannon? 21556 | -6/Factory | Spotted B-75 Beast 21802 | -6/Factory | Incoming investigation squad redirected 21891 | -6/Factory | Incoming investigation squad redirected 21917 | -6/Factory | Fabricated Lrn. Missile Launcher (x1) 22049 | -6/Factory | Discovered exit to Factory (range 7) 22185 | -6/Factory | Build established: Hacker-Scout 22220 | -6/Factory | Discovered exit to Factory (range 10) 22334 | -6/Factory | Core integrity fell below 50% 22429 | -6/Factory | First assault squad dispatched 22448 | -6/Factory | Incoming assault squad redirected 22647 | -6/Factory | Fabricated Lrn. Missile Launcher (x1) 22717 | -6/Factory | Build established: Hacker-Mutant 22943 | -6/Factory | Found Launcher Loader 23154 | -6/Factory | Incoming assault squad redirected 23388 | -6/Factory | Build established: Machinist-Mutant 24550 | -6/Factory | Build established: Mutant 24678 | -6/Factory | Destroyed 7 combat bots 25250 | -6/Factory | Incoming assault squad redirected 25953 | -6/Factory | Incoming assault squad redirected 26032 | -6/Factory | High security lockdown imminent 26083 | -6/Factory | Destroyed 8 combat bots 26112 | -6/Factory | High security lockdown engaged 26296 | -6/Factory | Destroyed 17 combat bots 26394 | -6/Factory | Destroyed 9 combat bots 26475 | -6/Factory | Build established: Machinist-Mutant 26550 | -6/Factory | Destroyed 16 combat bots 26614 | -6/Factory | Sterilization system engaged 26614 | -6/Factory | Non-combat units ordered to evacuate 26637 | -6/Factory | Destroyed 9 combat bots 26714 | -6/Factory | Combat units ordered to evacuate 26767 | -6/Factory | Destroyed 30 combat bots 26914 | -6/Factory | Ambient heat levels rising (+10) 27064 | -6/Factory | Ambient heat levels rising (+10) 27151 | -6/Factory | Build established: Hauler-Mutant 27214 | -6/Factory | Ambient heat levels rising (+10) 27323 | -6/Factory | Joined by Warlord Muscle squad 27364 | -6/Factory | Ambient heat levels rising (+10) 27439 | -6/Factory | Joined by Warlord Ranger squad 27514 | -6/Factory | Ambient heat levels rising (+10) 27637 | -6/Factory | Joined by Warlord Ghost squad 27664 | -6/Factory | Ambient heat levels rising (+10) 27675 | -6/Factory | Joined by Warlord Dakka squad 27725 | -6/Factory | Joined by Warlord Pyro squad 27814 | -6/Factory | Ambient heat levels rising (+10) 27894 | -6/Factory | Joined by Warlord Ghost squad 27964 | -6/Factory | Ambient heat levels rising (+10) 27988 | -6/Factory | Entered Lower Caves 28421 | -6/Lower Caves | Attracted the attention of an 0b10 checkpoint 28483 | -6/Lower Caves | Spotted B-75 Beast 28522 | -6/Lower Caves | Identified exit to Lower Caves 28575 | -6/Lower Caves | Entered another Lower Caves area 29154 | -6/Lower Caves | Acquired the password to a Derelict Tinkerer's latest research 29312 | -6/Lower Caves | Crushed by falling debris 29318 | -6/Lower Caves | Crushed by falling debris 29332 | -6/Lower Caves | Caught by Unaware searching for contraband prototypes 29343 | -6/Lower Caves | Caught by Unaware searching for contraband prototypes 29378 | -6/Lower Caves | Lost 4 parts (1p2u1w) 29463 | -6/Lower Caves | Learned Factory stockpile data 29652 | -6/Lower Caves | Discovered new exit (range 10) 29791 | -6/Lower Caves | Entered Zion 29856 | -6/Zion | Given A8's code to call for help 29900 | -6/Zion | System corruption cleaned by Quarantine Array 29948 | -6/Zion | Visited the Megawrench Repair Shop 30015 | -6/Zion | Discovered new exit (range 12) 30355 | -6/Zion | Given the Hacking Drone Bay 30405 | -6/Zion | Rebuked by Imprinter 31017 | -6/Zion | Found Prototype Hackware 31020 | -6/Zion | Found Prototype Processor 31020 | -6/Zion | Identified Exp. Targeting Computer 31024 | -6/Zion | Found Prototype Processor 31024 | -6/Zion | Identified Spectral Analyzer 31031 | -6/Zion | Found Prototype Processor 31031 | -6/Zion | Identified Exp. Melee Analysis Suite 31038 | -6/Zion | Found Prototype Processor 31038 | -6/Zion | Identified Exp. Target Analyzer 31041 | -6/Zion | Found Prototype Processor 31041 | -6/Zion | Identified Exp. Terrain Scan Processor 31283 | -6/Zion | Megawrench repaired 9 parts 31358 | -6/Zion | Entered Proximity Caves 31453 | -5/Proximity Caves | Learned Factory stockpile data 31723 | -5/Proximity Caves | Attracted the attention of an 0b10 outpost 31745 | -5/Proximity Caves | Core integrity fell below 20% 31792 | -5/Proximity Caves | Destroyed 7 combat bots 32002 | -5/Proximity Caves | Spotted B-75 Beast 32388 | -5/Proximity Caves | Destroyed B-75 Beast 32622 | -5/Proximity Caves | Attracted the attention of an 0b10 checkpoint 33321 | -5/Proximity Caves | Discovered exit to Factory (range 16) 33359 | -5/Proximity Caves | Entered Factory 33359 | -5/Factory | Evolved 2 slots: Utility x2 33568 | -5/Factory | Fabricated Linear Gravjet? 33785 | -5/Factory | Identified Exp. System Shield 33788 | -5/Factory | Identified exit to Upper Caves 34024 | -5/Factory | Cargo convoy interrupted 34198 | -5/Factory | Joined by Warlord Infantry squad 34281 | -5/Factory | Joined by Warlord Chimera squad 34413 | -5/Factory | Repaired Imp. Shield Generator? 34462 | -5/Factory | Build established: Hacker-Scout 35159 | -5/Factory | Search patrols dispatched 35569 | -5/Factory | Central database locked down 35569 | -5/Factory | Identified exit to Factory 35759 | -5/Factory | Search patrols dispatched 35907 | -5/Factory | Build established: Hacker-Mutant 35942 | -5/Factory | Fabricated Lrn. Missile Launcher? 36059 | -5/Factory | Search patrols dispatched 36359 | -5/Factory | Search patrols dispatched 36659 | -5/Factory | Search patrols dispatched 36959 | -5/Factory | Search patrols dispatched 37019 | -5/Factory | Build established: Hauler-Mutant 37185 | -5/Factory | Destroyed 7 combat bots 37259 | -5/Factory | First assault squad dispatched 37278 | -5/Factory | Incoming assault squad redirected 37376 | -5/Factory | Entered Upper Caves 37501 | -5/Upper Caves | Spotted B-75 Beast 37711 | -5/Upper Caves | Destroyed B-75 Beast 37894 | -5/Upper Caves | Learned Factory emergency access door positions 37996 | -5/Upper Caves | Attacked by a delusional Derelict stockpiling Unaware 38009 | -5/Upper Caves | Build established: Hauler-Skirmisher 38599 | -5/Upper Caves | Attracted the attention of an 0b10 base 38691 | -5/Upper Caves | Learned Extension terminal intel 38691 | -5/Upper Caves | Learned location of 1 exit from Research 38691 | -5/Upper Caves | Identified exit to Upper Caves 38849 | -5/Upper Caves | Build established: Hauler-Mutant 38936 | -5/Upper Caves | Entered another Upper Caves area 38936 | -5/Upper Caves | Accompanied by 4 allies 38956 | -5/Upper Caves | Learned Factory garrison access intel 39065 | -5/Upper Caves | Attracted the attention of an 0b10 outpost 39101 | -5/Upper Caves | Destroyed 7 combat bots 39112 | -5/Upper Caves | Discovered exit to Factory (range 17) 39341 | -5/Upper Caves | Attacked by a delusional Derelict stockpiling parts 39393 | -5/Upper Caves | Build established: Hauler-Skirmisher 39518 | -5/Upper Caves | Learned Factory stockpile data 39831 | -5/Upper Caves | Build established: Hauler-Mutant 40129 | -5/Upper Caves | Discovered new exit (range 6) 40146 | -5/Upper Caves | Spotted B-75 Beast 40156 | -5/Upper Caves | Allies destroyed B-75 Beast 40413 | -5/Upper Caves | Entered Zhirov 40413 | -5/Zhirov | Accompanied by 5 allies 40413 | -5/Zhirov | Discovered new exit (range 3) 40440 | -5/Zhirov | Met Zhirov 40473 | -5/Zhirov | Learned location of Quarantine (-3) 40473 | -5/Zhirov | Learned location of Testing (-2) 40473 | -5/Zhirov | Learned location of Command (-1) 40482 | -5/Zhirov | Zhirov requested help retrieving the SGEMP Prototype 40506 | -5/Zhirov | Found Alien Artifact 40506 | -5/Zhirov | Identified Integrated Reactor 40506 | -5/Zhirov | Installed Integrated Reactor, increased core energy generation (+10) 40528 | -5/Zhirov | Found Alien Artifact 40698 | -5/Zhirov | Entered Proximity Caves 40698 | -4/Proximity Caves | Accompanied by 5 allies 41290 | -4/Proximity Caves | Learned 8 Research zone layouts 41389 | -4/Proximity Caves | Spotted B-86 Titan 41781 | -4/Proximity Caves | P-70 Sage assimilated allied Sentinel 6a 41869 | -4/Proximity Caves | Attracted the attention of an 0b10 outpost 41908 | -4/Proximity Caves | Discovered exit to Factory (range 23) 41924 | -4/Proximity Caves | Destroyed 8 combat bots 42018 | -4/Proximity Caves | Entered Factory 42018 | -4/Factory | Accompanied by 4 allies 42018 | -4/Factory | Evolved 2 slots: Power x1, Weapon x1 42019 | -4/Factory | Identified exit to Upper Caves 42022 | -4/Factory | Loaded intel: 4 garrison access locations 42302 | -4/Factory | Spotted B-86 Titan 42861 | -4/Factory | Discovered new exit (range 16) 42943 | -4/Factory | Found Unknown Device 42943 | -4/Factory | Identified Quantum Capacitor 42974 | -4/Factory | Identified exit to Armory 42998 | -4/Factory | Incoming investigation squad redirected 43255 | -4/Factory | Discovered new exit (range 16) 43268 | -4/Factory | First assault squad dispatched 43286 | -4/Factory | Incoming assault squad redirected 43341 | -4/Factory | Spotted B-86 Titan 43408 | -4/Factory | Build established: Scout 43434 | -4/Factory | Fabricated Hvy. Reactive Plating? 43466 | -4/Factory | Found Imp. Powered Armor 43661 | -4/Factory | Incoming investigation squad redirected 43684 | -4/Factory | Incoming investigation squad redirected 43729 | -4/Factory | Fabricated Adv. Heavy Siege Treads? 43867 | -4/Factory | Build established: Mutant 43947 | -4/Factory | Fabricated Tri-rail Accelerator? 44022 | -4/Factory | Incoming investigation squad redirected 44242 | -4/Factory | Lost 4 parts (2p1n1u) 44307 | -4/Factory | Incoming investigation squad redirected 45033 | -4/Factory | Incoming assault squad redirected 45059 | -4/Factory | Incoming assault squad redirected 45064 | -4/Factory | High security lockdown imminent 45144 | -4/Factory | High security lockdown engaged 45400 | -4/Factory | Destroyed 17 combat bots 45451 | -4/Factory | Destroyed 7 combat bots 45454 | -4/Factory | Build established: Hauler-Mutant 45554 | -4/Factory | Destroyed 22 combat bots 45731 | -4/Factory | Destroyed 13 combat bots 45825 | -4/Factory | Destroyed 20 combat bots 45838 | -4/Factory | Sterilization system engaged 45838 | -4/Factory | Non-combat units ordered to evacuate 45938 | -4/Factory | Combat units ordered to evacuate 46138 | -4/Factory | Ambient heat levels rising (+10) 46288 | -4/Factory | Ambient heat levels rising (+10) 46438 | -4/Factory | Ambient heat levels rising (+10) 46490 | -4/Factory | Entered Upper Caves 46796 | -4/Upper Caves | Attracted the attention of an 0b10 outpost 46838 | -4/Upper Caves | Learned location of 1 exit from Research 47274 | -4/Upper Caves | Build established: Hauler-Tank 47957 | -4/Upper Caves | Build established: Hauler-Mutant 48050 | -4/Upper Caves | Attracted the attention of an 0b10 checkpoint 48196 | -4/Upper Caves | Discovered new exit (range 8) 48208 | -4/Upper Caves | Entered another Upper Caves area 48227 | -4/Upper Caves | Discovered new exit (range 14) 48273 | -4/Upper Caves | Build established: Hauler-Tank 48278 | -4/Upper Caves | Identified exit to Warlord 48419 | -4/Upper Caves | Attracted the attention of an 0b10 base 48477 | -4/Upper Caves | Crushed by falling debris 48477 | -4/Upper Caves | System corruption reached 10% 48564 | -4/Upper Caves | Learned 8 Research zone layouts 48564 | -4/Upper Caves | Learned location of 1 exit from Proximity Caves 48564 | -4/Upper Caves | Learned location of 2 exits from Lower Caves 48817 | -4/Upper Caves | Encountered a Warlord checkpoint 48991 | -4/Upper Caves | Learned Research stockpile data 49072 | -4/Upper Caves | Learned 8 Factory zone layouts 49072 | -4/Upper Caves | Learned Factory emergency access door positions 49072 | -4/Upper Caves | Learned Research stockpile data 49072 | -4/Upper Caves | Learned Research security intel 49622 | -4/Upper Caves | Entered Warlord 49639 | -4/Warlord | Build established: Hauler-Mutant 49671 | -4/Warlord | System corruption cleaned by Quarantine Array 50323 | -4/Warlord | Met Warlord 50330 | -4/Warlord | Warlord's base attacked by MAIN.C 50337 | -4/Warlord | Opened Warlord's prototype stash 50355 | -4/Warlord | Found Prototype Device 50355 | -4/Warlord | Identified Exp. Cloaking Device 50366 | -4/Warlord | Found Prototype Device 50366 | -4/Warlord | Identified System Purifier 50375 | -4/Warlord | Found Prototype Reactor 50375 | -4/Warlord | Identified Vortex Chain Reactor 50540 | -4/Warlord | Found Prototype Energy Cannon 50540 | -4/Warlord | Identified Vortex Driver 50680 | -4/Warlord | Warlord forces counterattacked 50773 | -4/Warlord | Spotted Executioner 50775 | -4/Warlord | Spotted Executioner 50778 | -4/Warlord | Spotted Striker 50788 | -4/Warlord | Destroyed Executioner 50807 | -4/Warlord | Found Prototype Ballistic Cannon 50807 | -4/Warlord | Identified Hvy. Autocannon 50851 | -4/Warlord | Spotted Striker 50854 | -4/Warlord | Spotted Striker 50859 | -4/Warlord | Destroyed Striker 50871 | -4/Warlord | Destroyed Striker 50899 | -4/Warlord | Spotted Striker 50932 | -4/Warlord | Destroyed 13 combat bots 50943 | -4/Warlord | Spotted Executioner 50960 | -4/Warlord | Spotted Executioner 50963 | -4/Warlord | Destroyed Executioner 50969 | -4/Warlord | Spotted Executioner 50973 | -4/Warlord | Spotted Striker 50974 | -4/Warlord | Destroyed Executioner 50988 | -4/Warlord | Destroyed Executioner 51005 | -4/Warlord | Warlord base infiltrated, sounded retreat 51019 | -4/Warlord | Destroyed 10 combat bots 51051 | -4/Warlord | Spotted Striker 51109 | -4/Warlord | Discovered new exit (range 14) 51127 | -4/Warlord | Entered Proximity Caves 51128 | -3/Proximity Caves | Identified exit to Research 51308 | -3/Proximity Caves | Build established: Hauler-Tank 51553 | -3/Proximity Caves | Attracted the attention of an 0b10 base 51553 | -3/Proximity Caves | Learned Research security intel 51553 | -3/Proximity Caves | Learned Extension emergency access door positions 51553 | -3/Proximity Caves | Learned Extension trap positions 51563 | -3/Proximity Caves | Crushed by falling debris 51587 | -3/Proximity Caves | Destroyed 7 combat bots 52206 | -3/Proximity Caves | Build established: Hauler-Mutant 52217 | -3/Proximity Caves | Attracted the attention of an 0b10 checkpoint 52996 | -3/Proximity Caves | Entered Research 52996 | -3/Research | Evolved 2 slots: Propulsion x2 52997 | -3/Research | Identified exit to Quarantine 52998 | -3/Research | Identified exit to Research 53163 | -3/Research | Found Unknown Launcher 53163 | -3/Research | Identified Gamma Bomb Array 53252 | -3/Research | Incoming investigation squad redirected 54068 | -3/Research | Crushed by falling debris 54226 | -3/Research | System corruption reached 10% 54301 | -3/Research | Found Prototype Device 54301 | -3/Research | Identified Adv. EM Disruption Field 54404 | -3/Research | Spotted B-86 Titan 54491 | -3/Research | Build established: Infiltrator-Sprinter 54804 | -3/Research | Incoming investigation squad redirected 54864 | -3/Research | Found Quantum Capacitor 54999 | -3/Research | Incoming investigation squad redirected 55010 | -3/Research | Incoming investigation squad redirected 55075 | -3/Research | Fabricated Hvy. Reactive Plating? 55384 | -3/Research | Incoming investigation squad redirected 55493 | -3/Research | Discovered exit to Research (range 16) 55496 | -3/Research | Search patrols dispatched 55537 | -3/Research | Found Hvy. Reactive Plating 55590 | -3/Research | Discovered exit to Research (range 21) 55872 | -3/Research | System corruption reached 30% 56234 | -3/Research | Build established: Hauler-Mutant 56496 | -3/Research | First assault squad dispatched 56697 | -3/Research | Destroyed 8 combat bots 57520 | -3/Research | Incoming assault squad redirected 57745 | -3/Research | High security lockdown imminent 57825 | -3/Research | High security lockdown engaged 57932 | -3/Research | Destroyed Executioner 57958 | -3/Research | Destroyed 13 combat bots 58058 | -3/Research | Destroyed 16 combat bots 58101 | -3/Research | Spotted Striker 58104 | -3/Research | Destroyed Striker 58109 | -3/Research | Spotted Striker 58113 | -3/Research | Scanned by Researcher 58117 | -3/Research | Spotted Investigator 58118 | -3/Research | Destroyed Investigator 58157 | -3/Research | Destroyed 8 combat bots 58163 | -3/Research | Destroyed Striker 58180 | -3/Research | Spotted Striker 58201 | -3/Research | Destroyed Striker 58261 | -3/Research | Spotted Striker 58296 | -3/Research | Destroyed Striker 58322 | -3/Research | Destroyed 21 combat bots 58387 | -3/Research | Destroyed Investigator 58396 | -3/Research | Sterilization system engaged 58396 | -3/Research | Non-combat units ordered to evacuate 58424 | -3/Research | Destroyed 18 combat bots 58454 | -3/Research | Spotted Striker 58484 | -3/Research | Destroyed Striker 58496 | -3/Research | Combat units ordered to evacuate 58524 | -3/Research | Destroyed 19 combat bots 58696 | -3/Research | Ambient heat levels rising (+10) 58846 | -3/Research | Ambient heat levels rising (+10) 58996 | -3/Research | Ambient heat levels rising (+10) 59097 | -3/Research | Found Gamma Bomb Array 59146 | -3/Research | Ambient heat levels rising (+10) 59296 | -3/Research | Ambient heat levels rising (+10) 59446 | -3/Research | Ambient heat levels rising (+10) 59596 | -3/Research | Ambient heat levels rising (+10) 59676 | -3/Research | Entered another Research area 59676 | -2/Research | Warlord forces began assault on 0b10 59676 | -2/Research | Evolved 2 slots: Utility x1, Weapon x1 59699 | -2/Research | Build established: Hauler-Tank 59701 | -2/Research | Distinguished unit "Offensive Angels" dispatched to help 59717 | -2/Research | High security lockdown imminent 59719 | -2/Research | Identified exit to Testing 59786 | -2/Research | Research machine network offline 59797 | -2/Research | High security lockdown engaged 60071 | -2/Research | Borebot progress halted 60101 | -2/Research | Destroyed 13 combat bots 60156 | -2/Research | Borebot progress halted 60164 | -2/Research | Spotted Striker 60174 | -2/Research | Spotted Executioner 60177 | -2/Research | System corruption reached 10% 60185 | -2/Research | Destroyed Striker 60217 | -2/Research | Destroyed Executioner 60238 | -2/Research | Destroyed 8 combat bots 60240 | -2/Research | Lost 6 parts (1p1n3u1w) 60352 | -2/Research | Spotted Executioner 60363 | -2/Research | Destroyed Executioner 60371 | -2/Research | Spotted Executioner 60385 | -2/Research | Destroyed Executioner 60404 | -2/Research | Lost 5 parts (4u1w) 60406 | -2/Research | Destroyed 8 combat bots 60430 | -2/Research | Found Megatreads 60497 | -2/Research | Spotted Executioner 60508 | -2/Research | Destroyed Executioner 60516 | -2/Research | Destroyed Executioner 60563 | -2/Research | Spotted Executioner 60565 | -2/Research | Spotted Striker 60571 | -2/Research | Spotted Executioner 60574 | -2/Research | Destroyed Executioner 60578 | -2/Research | Destroyed Executioner 60578 | -2/Research | Destroyed Striker 60579 | -2/Research | Spotted Executioner 60594 | -2/Research | System corruption reached 30% 60646 | -2/Research | Spotted Executioner 60650 | -2/Research | Destroyed 22 combat bots 60654 | -2/Research | Destroyed Executioner 60678 | -2/Research | Lost 14 parts (2p3n5u4w) 60749 | -2/Research | Found Prototype Processor 60749 | -2/Research | Identified Exp. Core Analyzer 60805 | -2/Research | Spotted Striker 60817 | -2/Research | Destroyed Striker 60868 | -2/Research | Spotted Striker 60872 | -2/Research | Spotted Striker 60876 | -2/Research | Identified Transdimensional Reconstructor 60876 | -2/Research | Warped through subspace 61050 | -2/Research | Build established: Scavenger-Gunner 61237 | -2/Research | Spotted Investigator 61237 | -2/Research | Spotted Executioner 61237 | -2/Research | Spotted Executioner 61237 | -2/Research | Spotted Striker 61237 | -2/Research | Spotted Executioner 61241 | -2/Research | Spotted Executioner 61256 | -2/Research | Core integrity fell below 50% 61312 | -2/Research | Core integrity fell below 20% 61322 | -2/Research | Spotted Executioner 61322 | -2/Research | Destroyed by P-80 Master with Gamma Rifle Last Messages --------------- 61320_ Slug penetrates G-73 Enforcer. 61320_ Penetrated by Slug. 61320_ Slug penetrates M-36 Artificer. 61320_ Penetrated by Slug. 61320_ Slug penetrates G-73 Enforcer. 61321_ C-30 ARC bursts open, deploying its payload. 61321_ Executioner unfolds itself. 61321_ H-88 Terminator unfolds itself. 61321_ P-80 Master unfolds itself. 61321_ I-47 Archangel unfolds itself. 61321_ P-80 Master resets Striker, system corruption cleaned. 61322_ Held in stasis. 61322_ Cargo Storage Unit destroyed. 61322_ Lrn. Tractor Beam crushed and broken. 61322_ Adv. Cooling System crushed and broken. 61322_ Imp. Matter Compressor crushed and broken. 61322_ Unknown Reactor crushed and broken. 61322_ Corrupted Adv. Energy Well crushed and broken. 61322_ Arm. Heavy Treads crushed and broken. 61322_ Imp. Quantum Reactor destroyed. Map ----- +----------------------------------------------------+ | ???????????????????????????????? | | ???????? ????????????????????? | | ???????? ????????????????????? | | ???????? ????????????????????? | | ???????? =????????????????????? | | ???????? ]????????????????????? | | ???????? !????????????????????? | | ???????? ????????????????????? | | ???????? ???????????###+###+#? | | ???????? ??????????? ?? | | ????????#"#???????????# ?? | | ???????? ???????????# ??? | | ???????? ??########## ???? | | ???????? ??# # #???? | | ???????## #??# # #???? | | ?######;# #??# """ # #???? | | ?? ] # #### """ # #???? | | ?? # + """ # #???? | | #? %# #### """ # #???? | | # """E[# #?## """ + +???? | | # """=[# ## # # #???? | | # """!=#=#[## # #???? | | # ""%l|#c=#######/#### ##### | | # !"="E=g|!%g E | | #=*/gpKgggE%%gm h i% | | ; !%==%@%g!gM % p% i | | ; !**=!EMhgg p i%g % | | ; %=!*]%m%;+################### | | # "=[p!%[!m ???????????????? | | ; "" !!! !#?????????????? | | # " !; " #?????????????? | | # ; """ #?????????????? | | # ; R #?????????????? | | ########; """ #?????????????? | | ????????; "" ? #?????????????? | | ????????; ??????????????????? | | ????????;= ??????????????????? | | ????????;;###??????????????????? | | ???????? ##????????????????????? | | ????????#??????????????????????? | | ???????????????????????????????? | | ???????????????????????????????? | | ???????????????????????????????? | | ???????????????????????????????? | | ???????????????????????????????? | | ???????????????????????????????? | | ???????????????????????????????? | | ???????????????????????????????? | | ???????????????????????????????? | | ???????????????????????????????? | +----------------------------------------------------+ Best States ------------- Heat Dissipation 180 Energy Generation 65 Energy Capacity 1100 Matter Stores 550 Matter Capacity 550 Sight Range 24 Robot Scan Range 16 Terrain Scan Range 24 Terrain Scan Density 1010 Jamming Range 16 Cloak Strength 4 Power Amplification 40 Additional Mass Support 9 EM Shielding 2 Armor Coverage 2400 Resistance: KI 40 Resistance: TH 30 Core Shielding 20 Power Shielding 66 Propulsion Shielding 66 Utility Shielding 66 Weapon Cycling 20 Melee Speed Boost 20 Phase Shifting 10 Evasion (%) 76 Targeting Accuracy 20 Melee Accuracy 8 Launcher Accuracy 20 Target Analysis 8 Core Analysis 8 Recoil Reduction 6 Matter Filtering 50 Offensive Hacking 34 Defensive Hacking 28 Authchip Count 2 Item Schematics ----------------- Huge Storage Unit | -8/Materials | Scanalyzed Humpback | -8/Materials | Scanalyzed Arm. Treads | -7/Factory | Hacked Hvy. Missile Launcher | -7/Factory | Hacked Imp. Shield Generator | -7/Factory | Hacked Hrd. Heavy Armor Plating | -7/Factory | Scanalyzed Hvy. Plasma Cannon | -7/Factory | Scanalyzed Imp. Light Armor Plating | -7/Factory | Scanalyzed Weapon Mount | -7/Factory | Hacked Adv. Drone Bay | -7/Factory | Hacked Combat Drone Bay | -7/Data Miner | Free Lgt. Regenerative Plating | -7/Data Miner | Free Cld. Aerolev Unit | -7/Data Miner | Free Gravity Neutralizer | -7/Data Miner | Free Cld. Plasma Cannon | -7/Data Miner | Free Antigrav System | -7/Data Miner | Free Adv. Hacking Suite | -7/Data Miner | Free KE Penetrator | -7/Data Miner | Free Adv. Thermal Shield | -7/Data Miner | Free Proton Cannon | -7/Data Miner | Free Hdn. Centrium Wheel | -6/Factory | Scanalyzed Antimatter Cannon | -6/Factory | Scanalyzed Lrn. Missile Launcher | -6/Factory | Hacked Cmb. Airjet | -6/Factory | Scanalyzed Imp. Propulsion Shielding | -6/Factory | Scanalyzed Adv. Terrain Scanner | -6/Factory | Scanalyzed Lgt. Fission Core | -6/Factory | Scanalyzed Imp. Powered Armor | -6/Factory | Hacked Hvy. Reactive Plating | -5/Factory | Hacked Tri-rail Accelerator | -5/Factory | Hacked Assault Drone Bay | -5/Zhirov | Free Exp. Heat Sink | -5/Zhirov | Free Exp. Optical Array | -5/Zhirov | Free Imp. Arc Thrower | -5/Zhirov | Free Biometal Heavy Treads | -4/Factory | Hacked Adv. Heavy Siege Treads | -4/Factory | Hacked Adv. Focal Shield | -4/Factory | Scanalyzed Imp. Matter Compressor | -4/Factory | Scanalyzed Robot Schematics ------------------ H-55 Commando | -7/Data Miner | Free A-15 Conveyor | -7/Data Miner | Free Y-54 Guardian | -7/Data Miner | Free S-27 Virus | -7/Data Miner | Free L-41 Fighter | -7/Data Miner | Free I-47 Archangel | -7/Data Miner | Free X-72 Disruptor | -7/Data Miner | Free G-50 Soldier | -6/Factory | Hacked Fabricated ------------ Arm. Treads | x2 | -7/Factory Imp. Shield Generator | x2 | -7/Factory Humpback | x1 | -7/Factory Hrd. Heavy Armor Plating | x1 | -7/Factory H-55 Commando | x2 | -7/Factory | Preloaded Arm. Treads | x2 | -7/Factory Hrd. Heavy Armor Plating | x1 | -7/Factory Impulse Thruster Array | x1 | -6/Factory | Preloaded Weapon Mount | x2 | -6/Factory Hdn. Centrium Wheel | x1 | -6/Factory Humpback | x1 | -6/Factory Antimatter Cannon | x1 | -6/Factory Lrn. Missile Launcher | x1 | -6/Factory Lrn. Missile Launcher | x1 | -6/Factory Linear Gravjet | x2 | -5/Factory | Preloaded Lrn. Missile Launcher | x1 | -5/Factory Hvy. Reactive Plating | x1 | -4/Factory Adv. Heavy Siege Treads | x2 | -4/Factory Tri-rail Accelerator | x1 | -4/Factory Hvy. Reactive Plating | x1 | -3/Research Alien Tech Used ----------------- Integrated Reactor Transdimensional Reconstructor Achievements -------------- None Challenges ------------ None Game ------ Seed AntimatterHardcellMultirail Manual? 0 Play Time 19:24:28 Cumulative 834.5 hours Start 2022.08.01 @ 19:17:52 End 2022.08.06 @ 23:22:25 Sessions 29 Manual Loads 0 Difficulty Rogue Special Mode None Game No. 191 Rogue 159 Adventurer 31 Explorer 1 Win Type - Total 38 Types 28/0/5/4/0/0/1/0/0 Lore% 85 Gallery% 88 Achievement% 76 Wizard Run 0 Options --------- ASCII 0 Keyboard 0 Movement Arrows Keybinds 0 Fullscreen 1 Font 20/Terminus Map View 66x50 Tactical HUD 1 Map Filters NONE Filters NONE Steam 1 RUN: 63d1d979-e4dd-4691-92ae-696637407064